{"text_format":"1","workbook":"xlsx","n_sheets":13,"sheets":["Ввод данных","ВИК","ПВК","МК","РК","УК","Уд-я","СМУ","Аппараты","ТК","Для УЗК","Шапка","Лист1"],"not_rendered":{"charts":0,"images":0,"macros":1,"external_links":1,"defined_names":17,"comments":1,"pivot_tables":0},"unopened":[],"bounds":{"document_bytes":16777216,"sheet_cells":100000,"rows_first":2000,"rows_last":500,"rows_between":2000,"halvings":0,"cell_chars":16384,"cell_head_chars":4096},"cells_cut":0,"cells_raw":0,"read":"whole","date_system":"1900"}

{"sheet":"Ввод данных","index":0,"n_rows":44,"n_cols":40,"rows_kept":44,"cut":false,"hidden":false,"merged":[[4,12,4,16],[10,13,10,14],[5,2,5,8],[6,14,6,15],[4,9,6,10],[8,2,10,8],[7,14,7,15],[21,16,24,16],[21,12,24,12],[21,10,24,10],[11,13,11,14],[24,1,24,2],[16,15,16,16],[16,13,16,14],[16,11,16,12],[16,9,16,10],[21,14,24,14],[21,15,24,15],[21,13,24,13],[8,1,10,1],[8,0,10,0],[21,11,24,11],[21,9,24,9],[25,1,27,2],[27,9,27,10],[20,4,22,5],[20,6,22,7]]}
[" Наименование ЛНК","№ заявки для ЛНК","Дата заявки ЛНК","Титул","Линия","Чертеж","ISO ","Spool","Номер стыка","Категория","% контроля","Материал свариваемых элементов","Вид сварного соединения  "," Диаметр 1","Толщина 1","Диаметр 2","Толщина 2","Дюйм-диаметр","Клейма сварщиков","№ заключения ВИК VT ","Статус ВИК (заявлен, Годен, Ремонт, вырез, пересвет, предмет в трубе)","Дата ВИК","№ заключения  РК RT","Статус РК (заявлен, Годен, Ремонт, вырез, пересвет, предмет в трубе)","Дата РК","№ заключения  УЗК UT ","Статус УЗК (заявлен, Годен, Ремонт, вырез, пересвет, предмет в трубе)","Дата УЗК","№ заключения ПВК PT","Статус ПВК (заявлен, Годен, Ремонт, вырез, пересвет, предмет в трубе)","Дата ПВК","Заявленны виды контроля","Недопустимый дефект, координата дефекта","Комментарии ВИК","Комментарии ПВК","Комментарии РК","Отметка о приемке заключений РК представителями СГ","Комментарии","№ Реестра","Примечания заключений (комментарии)"]
["ООО \"Альфа\"","YMTP3-A-0131","2020-12-21","﻿4.3.3.30.421","4-30-331047","0055-4.3.3.30.421-TM1.IS-0290","4-3-3-30-421-NHRGR-33-1047-002","P3Y70792","S2.8","Б(а)-I / B(a)-I",1,"LTCS / НТУС","BW",60.3,8.74,60.3,8.74,2,"95ML","VT",null,null,"RT",null,null,"YMTP3-A-0131 UT 30918","Годен","2020-12-21","PT",null,null,"УЗК"]
[null,null,null,null,null,null,null,null,null,null,null,null,null,null,null,null,null,null,null,{"$f":"IF(OR(ISBLANK(T2),T2=\"VT\",T2=\" \",T2=\"  \",T2=\"   \",T2=\"    \",T2=\"     \"),\"0\",T2)","v":"0"},null,null,{"$f":"IF(OR(ISBLANK(W2),W2=\"RT\",W2=\" \",W2=\"  \",W2=\"   \",W2=\"    \",W2=\"     \"),\"0\",W2)","v":"0"},null,null,{"$f":"IF(OR(ISBLANK(Z2),Z2=\"UT\",Z2=\" \",Z2=\"  \",Z2=\"   \",Z2=\"    \",Z2=\"     \"),\"0\",Z2)","v":"YMTP3-A-0131 UT 30918"},null,null,{"$f":"IF(OR(ISBLANK(AC2),AC2=\"PT\",AC2=\" \",AC2=\"  \",AC2=\"   \",AC2=\"    \",AC2=\"     \"),\"0\",AC2)","v":"0"}]
[null,null,null,null,null,null,null,null,null,null,null,null,null,null,null,null,null,null,null,null,null,null,null,null,null,null,null,null,null,null,null,null,null,{"$f":"IF(NOT(ISERROR(SEARCH(\"YMT\",B9,1))),AG2,AJ2)","v":0},{"$f":"IF(NOT(ISERROR(SEARCH(\"YMT\",B9,1))),AH2,AK2)","v":0},null,null,null,{"$f":"IF(NOT(ISERROR(SEARCH(\"YMT\",B9,1))),AL2,AO2)","v":0}]
[null,null,null,null,null,null,null,null,null,null,null,null,"ОПОРЫ \"Т\"стыки:",null,null,null,null,null,"задать путь для сохранения"]
[null,"Наименование файла:",{"$f":"\"Закл.№\"&ВИК!K2&\"-\"&$B$2&\"   \"&IF(OR($H$2=\"N/A\",$H$2=\" -\",$H$2=\"-\",ISBLANK($H$2)),RIGHT($E$2,4),$H$2)&\"   \"&$I$2&\"   от \"&ВИК!I3&\"   \"&$E$14&\"x\"&$F$14&\"   \"&methods&IF($I$14=\"Ремонт\",\"   R\",\"\")","v":"Закл.№30918-YMTP3-A-0131   P3Y70792   S2.8   от 21.12.2020   60,3x8,74   УЗК"}]
[null,null,null,null,null,null,null,null,null,null,null,null,null,"Маркировка\nстыка","ТК"]
[null,null,null,null,null,null,null,null,null,null,null,null,null,{"$f":"IF(NOT(ISERROR(SEARCH(\"T\",$D$14,1))),\"T\",IF(NOT(ISERROR(SEARCH(\"S\",$D$14,1))),\"S\",IF(NOT(ISERROR(SEARCH(\"F\",$D$14,1))),\"F\",\"новый стык!\")))","v":"S"},{"$f":"IF($N$8=\"T\",ТК!$A$7,ТК!$A$8)","v":"ТК-АЛЬФА-ВИК-2,77-50"}]
["Журнал:","YMT",{"$f":"ВИК!B1","v":"Наименование подрядной организации /Name of the construction contractor: Филиал Акционерной Компании \"Ямата Ятырым Иншаат Туризм ве Тиджарет Аноним Ширкети\" Yamata Yatirim Insaat Turizm ve Ticaret A.S."}]
[null,null,null,null,null,null,null,null,null,null,null,null,"Комментарий \"Т\":",{"$f":"IF(NOT($AM$4=0),$AM$4,\" -\")","v":" -"},{"$f":"IF(NOT(AI4=0),AI4,\" -\")","v":" -"},"Ø"]
[null,null,null,null,null,null,null,null,null,null,null,null,"Размер:",{"$f":"IF(N8=\"T\",C16,\" -\")","v":" -"}]
[null,null,null,null,null,null,null,null,null,null,null,null,"Примечание:",{"$f":"IF(N8=\"T\",P12&\"Lшва=\"&AM4&\"mm\",\" -\")","v":" -"},null,"∑"]
[null,"Spool","Линия:","№ стыка","Д1","Т1","Д2","Т2","Статус стыка"]
[null,{"$f":"$H$2","v":"P3Y70792"},{"$f":"$E$2","v":"4-30-331047"},{"$f":"$I$2","v":"S2.8"},{"$f":"VALUE(SUBSTITUTE($N$2,\".\",\",\"))","v":60.3},{"$f":"VALUE(SUBSTITUTE($O$2,\".\",\",\"))","v":8.74},{"$f":"VALUE(SUBSTITUTE($P$2,\".\",\",\"))","v":60.3},{"$f":"VALUE(SUBSTITUTE($Q$2,\".\",\",\"))","v":8.74},{"$f":"IF(U2=\"ремонт\",\"ремонт\",IF(U2=\"вырезать\",\"ремонт\",IF(X2=\"ремонт\",\"ремонт\",IF(X2=\"вырезать\",\"ремонт\",IF(X2=\"Расшифровке не подлежит\",\"ремонт\",IF(AA2=\"ремонт\",\"ремонт\",IF(AA2=\"вырезать\",\"ремонт\",IF(AD2=\"ремонт\",\"ремонт\",IF(AD2=\"вырезать\",\"ремонт\",\"годен\")))))))))","v":"годен"}]
[]
[null,"Формат размера:",{"$f":"IF(N8=\"T\",P10&E14&\" x \"&F14&\" / L\"&O10,E14&\" x \"&F14&\" + \"&G14&\" x \"&H14)","v":"60,3 x 8,74 + 60,3 x 8,74"}]
[null,null,null,null,null,null,null,null,null,"ВИК:",null,"ПВК:",null,"УЗК:",null,"РК:"]
[null,"№ Заявки:",{"$f":"$B$2","v":"YMTP3-A-0131"},null,null,null,null,null,null,"№ заявки:",{"$f":"ВИК!I2","v":"YMTP3-A-0131"},"№ заявки:",{"$f":"ПВК!J3","v":"YMTP3-A-0131"},"№ заявки:",{"$f":"УК!L3","v":"YMTP3-A-0131"},"№ заявки:",{"$f":"РК!J3","v":"YMTP3-A-0131"}]
[null,"Титул:",{"$f":"$D$2","v":"﻿4.3.3.30.421"},null,null,null,null,null,null,"№:",{"$f":"ВИК!K2","v":"30918"},"№:",{"$f":"ПВК!L3","v":"30918"},"№:",{"$f":"УК!N3","v":"30918"},"№:",{"$f":"РК!L3","v":"30918"}]
[null,"Чертеж:",{"$f":"$F$2","v":"0055-4.3.3.30.421-TM1.IS-0290"},null,null,null,null,null,null,"Дата:",{"$f":"ВИК!I3","v":"21.12.2020"},"Дата:",{"$f":"ПВК!J5","v":"21.12.2020"},"Дата:",{"$f":"УК!L5","v":"21.12.2020"},"Дата:",{"$f":"РК!J5","v":"21.12.2020"}]
[null,"ISO:",{"$f":"$G$2","v":"4-3-3-30-421-NHRGR-33-1047-002"},null,null,null,null,null,null,"Статус:",{"$f":"ВИК!M12","v":"годен / appropriate"},"Статус:",{"$f":"ПВК!N13","v":"годен / appropriate"},"Статус:",{"$f":"УК!P15","v":"годен / appropriate"},"Статус:",{"$f":"РК!P15","v":"годен / appropriate"}]
[null,"Категория:",{"$f":"$J$2","v":"Б(а)-I / B(a)-I"},null,null,null,null,null,null,"Дефекты:",{"$f":"ВИК!L12","v":"недопустимых дефектов не обнаружено / unacceptable defects not detected"},"Дефекты:",{"$f":"ПВК!M13","v":"недопустимых дефектов не обнаружено / unacceptable defects not detected"},"Дефекты:",{"$f":"УК!N15","v":"дефектов не обнаружено /         no defects detected"},"Оборудование:",{"$f":"РК!$G$9","v":"Рентгеновский аппарат «Март-200» №411; Рентгеновская пленка AGFA STRUCTURIX D7; Денситометр ДД-5005-220 №18-1020; Проявочная машина Colenta INDX 900Е №160621294; Негатоскоп светодиодный А3 Lumen 400/100 Зав. № 109  "}]
[null,"Заявленные методы контроля:",{"$f":"IF(NOT(ISERROR(SEARCH(\"YMT\",B9,1))),AF2,AI2)","v":"УЗК"}]
[]
[null,"Дефекты:"]
[null,{"$f":"IF(NOT(AH4=0),AH4,\"\")","v":""},null,null,null,null,null,null,null,"ТК:",{"$f":"ВИК!M7","v":"ТК-АЛЬФА-ВИК-2,77-50"},"ТК:",{"$f":"ПВК!M8","v":"ТК-AЛЬФА-ПВК-01"},"ТК:",{"$f":"УК!N8","v":"ТК-АЛЬФА-УК-01"},"ТК:",{"$f":"РК!O8","v":"ТК-АЛЬФА-РК-Э"}]
[null,null,null,null,null,null,null,null,null,null,null,null,null,"СОП:",{"$f":"УК!E10","v":"НО-ТТР 60,3/8,74-2,0х1,0 ст.20; №1564-20; СО2 №4598; \nСО3 №4640"}]
[null,null,null,null,null,null,null,null,null,{"$f":"ВИК!F4","v":"0055-4.3.3.30.421-TM1.IS-0290"},null,null,null,"ПЭП:",{"$f":"УК!J9","v":"ПЭП П121-5,0-70 №1245344"}]
[]
[]
[]
["Список журналов:"]
["YMT"]
["CPECC (CPC)"]
["CPECC (YМТ)"]
["CPECC (TTVR)"]
["CPECC (AFB)"]
["CPECC (GNZ)"]
["CPECC (CPC-ABC)"]
["YMT (эксперимент)"]
[null,null,{"$f":"УК!J9","v":"ПЭП П121-5,0-70 №1245344"}]
[null,null,{"$f":"УК!E10","v":"НО-ТТР 60,3/8,74-2,0х1,0 ст.20; №1564-20; СО2 №4598; \nСО3 №4640"}]
[null,null,{"$f":"УК!J10","v":"Зарубка 2,0x1 мм"}]
[null,null,{"$f":"УК!Q9","v":"-"}]

{"sheet":"ВИК","index":1,"n_rows":58,"n_cols":17,"rows_kept":58,"cut":false,"hidden":false,"merged":[[5,15,6,15],[5,16,6,16],[14,7,14,11],[12,1,12,13],[13,1,14,4],[13,5,13,6],[14,5,14,6],[11,9,11,10],[10,9,10,10],[13,7,13,11],[11,3,11,5],[10,3,10,5],[10,7,10,8],[11,7,11,8],[8,11,9,11],[8,12,9,12],[8,13,9,13],[8,3,9,5],[8,7,9,8],[8,9,9,10],[2,8,4,10],[5,1,5,13],[7,1,7,13],[8,1,9,1],[8,2,9,2],[8,6,9,6],[17,7,17,11],[18,7,18,11],[15,1,16,4],[15,5,15,6],[16,5,16,6],[17,1,18,4],[17,5,17,6],[18,5,18,6],[15,7,15,11],[16,7,16,11],[11,16,11,20],[0,1,0,5],[0,6,0,10],[6,1,6,11],[0,11,0,13],[1,1,1,5],[1,11,1,13],[1,6,1,7],[2,11,4,12],[6,12,6,13],[2,13,4,13],[2,1,2,3],[2,4,2,5],[3,1,3,2],[4,1,4,2],[2,6,4,7]]}
[null,{"$f":"VLOOKUP('Ввод данных'!B9,Шапка!A:F,2,0)","v":"Наименование подрядной организации /Name of the construction contractor: Филиал Акционерной Компании \"Ямата Ятырым Иншаат Туризм ве Тиджарет Аноним Ширкети\" Yamata Yatirim Insaat Turizm ve Ticaret A.S."},null,null,null,null,null,null,null,null,null,"Наименование лаборатории / Name of the Laboratory:\nООО \"Альфа\" / LLC \"Alfa\""]
[null,"Наименование обьекта / Project name:\nАмурский газоперерабатывающий завод. Этап 4. Газоперерабатывающий завод. Нелицензионные установки. \nAmursky gas Processing plant. Phase 4. Gas Processing plant. Non-Iicensed facilities. ",null,null,null,null,"AКТ № /                                                ACT NO",null,{"$f":"'Ввод данных'!$B$2","v":"YMTP3-A-0131"},"VT",{"$f":"IF(NOT('Ввод данных'!T3=\"0\"),RIGHT('Ввод данных'!T2,5),IF(NOT('Ввод данных'!W3=\"0\"),RIGHT('Ввод данных'!W2,5),IF(NOT('Ввод данных'!Z3=\"0\"),RIGHT('Ввод данных'!Z2,5),IF(NOT('Ввод данных'!AC3=\"0\"),RIGHT('Ввод данных'!AC2,5)))))","v":"30918"},"Номер cвидетельства № / license No 80А080340\nдействительно до / valid till  14.07.2022"]
[null,{"$f":"VLOOKUP('Ввод данных'!B9,Шапка!A:G,7,0)","v":"Наименование технологического узла/ Name of the process unit:"},null,null,{"$f":"'Ввод данных'!$H$2","v":"P3Y70792"},null,"от / issued",null,{"$f":"IF(NOT('Ввод данных'!T3=\"0\"),TEXT('Ввод данных'!V2,\"дд.ММ.гггг\"),IF(NOT('Ввод данных'!W3=\"0\"),TEXT('Ввод данных'!Y2,\"дд.ММ.гггг\"),IF(NOT('Ввод данных'!Z3=\"0\"),TEXT('Ввод данных'!AB2,\"дд.ММ.гггг\"),IF(NOT('Ввод данных'!AC3=\"0\"),TEXT('Ввод данных'!AE2,\"дд.ММ.гггг\")))))","v":"21.12.2020"},null,null,"Наименование НТД, регламентирующего требования\nк оценке качества соединения / NDT regulating requirements for quality assesment of weld joints:",null,"РД 03-606-03; ГОСТ 32569-2013; ASME B31.3"]
[null,"Титул / Title",null,{"$f":"'Ввод данных'!$D$2","v":"﻿4.3.3.30.421"},"Номер чертежа / Drawing number.",{"$f":"IF('Ввод данных'!B9=\"CPECC (CPC-ABC)\",'Ввод данных'!G2,IF('Ввод данных'!B9=\"YMT (эксперимент)\",'Ввод данных'!G2,'Ввод данных'!F2))","v":"0055-4.3.3.30.421-TM1.IS-0290"}]
[null,"Номер линии / Line number.",null,{"$f":"'Ввод данных'!$E$2","v":"4-30-331047"},"Категория трубопровода / Pipeline class:",{"$f":"'Ввод данных'!$J$2","v":"Б(а)-I / B(a)-I"},null,null,null,null,null,null,null,null,null,"ВИК:",{"$f":"'Ввод данных'!V2","v":0}]
[null,"ВИЗУАЛЬНО-ИЗМЕРИТЕЛЬНОГО КОНТРОЛЯ СВАРНЫХ СОЕДИНЕНИЙ / VISUAL AND MEASUREMENT CONTROL OF WELDING JOINTS",null,null,null,null,null,null,null,null,null,null,null,null,null,"ПВК:",{"$f":"'Ввод данных'!AE2","v":0}]
[null,"Контроль выполнен в соответствии с технологическим документом / Testing is done in accordance with the technological document:",null,null,null,null,null,null,null,null,null,null,{"$f":"'Ввод данных'!O8","v":"ТК-АЛЬФА-ВИК-2,77-50"}]
[]
[null,"№                  П/П / Seq n-r","Номер сварного \nсоединения / Welded joint number.","Размер свариваемых элементов / Welded elements size, mm",null,null,"Клеймо\nсварщика / Welder code (stamp)","Средства контроля / Inspection means",null,"Условия проведения контроля (освещенность, шероховатость) /\nConditions of inspection  (lighting,  roughness)",null,"Описание выявленных дефектов/\nDescription of detected  defects","ЗАКЛЮЧЕНИЕ\n(годен, ремонт, вырезать) /\nCONCLUSION (appropriate, repair, cut off) ","Примечание / Note",null,"УЗК:",{"$f":"'Ввод данных'!AB2","v":44186}]
[]
[null,1,2,3,null,null,4,5,null,6,null,7,8,9]
[null,1,{"$f":"'Ввод данных'!$I$2","v":"S2.8"},{"$f":"'Ввод данных'!$C$16","v":"60,3 x 8,74 + 60,3 x 8,74"},null,null,{"$f":"'Ввод данных'!$S$2","v":"95ML"},"Набор ВИК №064 / VT Set No 064; WG-2+ № 30498 / WG-2+ No.30498; Люксметр \"ТКА-ПКМ\" (02) № 02 8862 / Luximeter No.02 8862  ",null,">500 Лк / lx;  Rz-80",null,"недопустимых дефектов не обнаружено / unacceptable defects not detected","годен / appropriate"," ",null,"Дефект:",{"$f":"'Ввод данных'!AH4","v":0}]
[]
[null,"Контроль провел / Checked by:",null,null,null,"Пушкарский Ю.А. / Pushkarsky Y.A.",null,{"$f":"VLOOKUP(F14,'Уд-я'!A:F,2,0)","v":"2ур. № 0045-04-4066 до 2023-06-29/2 level No 0045-04-4066 till 2023-06-29"},null,null,null,null,null,{"$f":"I3","v":"21.12.2020"}]
[null,null,null,null,null,"(фамилия, инициалы / surname and initials)",null,"(уровень квалификации, удостоверение / qualification, certificate)",null,null,null,null,"(подпись / signature)","(дата / date)"]
[null,"Начальник лаборатории / Laboratory Head:",null,null,null,"Сахнов Е.В. / Sahnov E.V.",null,{"$f":"VLOOKUP(F16,'Уд-я'!A:F,2,0)","v":"2 ур. № 0045-04-2989 до 2022-02-25/ 2 level No 0045-04-2989 till 2022-02-25"},null,null,null,null,null,{"$f":"I3","v":"21.12.2020"}]
[null,null,null,null,null,"(фамилия, инициалы / surname and initials)",null,"(уровень квалификации, удостоверение / qualification, certificate)",null,null,null,null,"(подпись / signature)","(дата / date)"]
[null,"Акт получил, с результатами контроля ознакомлен / I have received the act and have been familiarized with the results of the inspection:",null,null,null,null,null,null,null,null,null,null,null,{"$f":"I3","v":"21.12.2020"}]
[null,null,null,null,null,"(фамилия, инициалы / surname and initials)",null,"(должность / position)",null,null,null,null,"(подпись / signature)","(дата / date)"]
[]
[]
[null,null,null,null,null,null,null,null,null,null,null,"недопустимых дефектов не обнаружено / unacceptable defects not detected"]
[null,null,"Годен / acceptable",null,null,null,null,null,null,null,null,"несплавление / lack of fusion"]
[null,null,"Ремонт / to be repaired",null,null,null,null,null,null,null,null,"брызги металла по периметру/ spatters around the perimeter"]
[null,null,"Вырезать / to be cut",null,null,null,null,null,null,null,null,"брызги металла / spatter"]
[null,null,null,null,null,null,null,null,null,null,null,"подрез / undercut"]
[null,null,null,null,null,null,null,null,null,null,null,"кратеры / crater"]
[null,null,null,null,null,null,null,null,null,null,null,"поры / porosity"]
[null,null,null,null,null,null,null,null,null,null,null,"прижег / burnt"]
[null,null,null,null,null,null,null,null,null,null,null,"задир / scoring"]
[null,null,null,null,null,null,null,null,null,null,null,"забоина / dent"]
[null,null,null,null,null,null,null,null,null,null,null,"грубая чешуйчатость / rough ripple"]
[null,null,null,null,null,null,null,null,null,null,null,"межваликовое западание / low spot between beads"]
[null,null,null,null,null,null,null,null,null,null,null,"задир в ОШЗ / scoring in weld zone"]
[null,null,null,null,null,null,null,null,null,null,null,"запил / gash"]
[null,null,null,null,null,null,null,null,null,null,null,"утяжина / shrinkage depression"]
[null,null,null,null,null,null,null,null,null,null,null,"усадочная раковина / shrinkage cavity"]
[null,null,null,null,null,null,null,null,null,null,null,"расслоение / delamination"]
[null,null,null,null,null,null,null,null,null,null,null,"коррозия / corrosion"]
[null,null,null,null,null,null,null,null,null,null,null,"смещение кромок / high low bevel"]
[null,null,null,null,null,null,null,null,null,null,null,"вышлифовка / grinding","(может быть не грамотно)"]
[null,null,null,null,null,null,null,null,null,null,null,"превышение усиления / excess convexity"]
[null,null,null,null,null,null,null,null,null,null,null,"трещина / crack"]
[null,null,null,null,null,null,null,null,null,null,null,"скопление / cluster"]
[null,null,null,null,null,null,null,null,null,null,null,"недостаточное усиление / insufficient reinforcement"]
[null,null,null,null,null,null,null,null,null,null,null,"закат / lap"]
[null,null,null,null,null,null,null,null,null,null,null,"свищ/ crack"]
[null,null,null,null,null,null,null,null,null,null,null,"нарушение геометрии шва / imperfect shape"]
[null,null,null,null,null,null,null,null,null,null,null,"наплыв / Influx"]
[null,null,null,null,null,null,null,null,null,null,null,"неправильное возобновление шва / incorrect contour"]
[null,null,null,null,null,null,null,null,null,null,null,"непровар / lack of fusion"]
[null,null,null,null,null,null,null,null,null,null,null,"профиль шва / joint profile"]
[null,null,null,null,null,null,null,null,null,null,null,"неправильный профиль шва / incorrect weld profile"]
[null,null,null,null,null,null,null,null,null,null,null,"наплыв / overlap"]
[null,null,null,null,null,null,null,null,null,null,null,"не зачищено / not trimmed"]
[null,null,null,null,null,null,null,null,null,null,null,"утонение металла / underflushing"]
[null,null,null,null,null,null,null,null,null,null,null,"неравномерная ширина шва / irregular width"]
[null,null,null,null,null,null,null,null,null,null,null,"чрезмерная ассиметрия углового шва / excessive asymmetry of fillet weld"]

{"sheet":"ПВК","index":2,"n_rows":20,"n_cols":19,"rows_kept":20,"cut":false,"hidden":false,"merged":[[12,18,12,21],[6,1,6,14],[7,1,7,11],[7,12,7,14],[8,1,8,14],[9,11,10,11],[9,12,10,12],[9,13,10,13],[9,14,10,14],[2,10,3,10],[3,1,3,3],[3,4,3,6],[7,17,8,17],[7,18,8,18],[13,1,13,14],[9,3,10,6],[12,8,12,10],[9,8,10,10],[11,8,11,10],[12,3,12,6],[11,3,11,6],[9,1,10,1],[9,2,10,2],[9,7,10,7],[14,1,15,5],[14,6,14,7],[14,8,14,12],[15,6,15,7],[15,8,15,12],[16,1,17,5],[16,6,16,7],[16,8,16,12],[17,6,17,7],[17,8,17,12],[18,1,19,5],[18,6,18,7],[18,8,18,12],[19,6,19,7],[19,8,19,12],[1,1,1,6],[1,7,1,11],[1,12,1,14],[2,1,2,6],[2,12,2,14],[2,7,3,8],[2,11,3,11],[3,12,5,13],[2,9,3,9],[4,9,5,11],[3,14,5,14],[4,1,4,2],[4,5,4,6],[5,1,5,2],[5,5,5,6],[4,7,5,8]]}
[]
[null,{"$f":"ВИК!B1","v":"Наименование подрядной организации /Name of the construction contractor: Филиал Акционерной Компании \"Ямата Ятырым Иншаат Туризм ве Тиджарет Аноним Ширкети\" Yamata Yatirim Insaat Turizm ve Ticaret A.S."},null,null,null,null,null,null,null,null,null,null,"Наименование лаборатории / Name of the Laboratory:\nООО \"Альфа\" / LLC \"Alfa\""]
[null,"Наименование обьекта / Project name:\nАмурский газоперерабатывающий завод. Этап 4. Газоперерабатывающий завод. Нелицензионные установки. \nAmursky gas Processing plant. Phase 4. Gas Processing plant. Non-Iicensed facilities. ",null,null,null,null,null,"ЗАКЛЮЧЕНИЕ № /                  REPORT NO",null,{"$f":"ВИК!I2","v":"YMTP3-A-0131"},"PT",{"$f":"ВИК!K2","v":"30918"},"Номер cвидетельства № / license No 80А080340\nдействительно до / valid till  14.07.2022"]
[null,{"$f":"ВИК!B3","v":"Наименование технологического узла/ Name of the process unit:"},null,null,{"$f":"ВИК!E3","v":"P3Y70792"},null,null,null,null,null,null,null,"Наименование НТД, регламентирующего требования\nк оценке качества соединения / NDT regulating requirements for quality assesment of weld joints:",null,"ГОСТ 32569-2013; ГОСТ 18442-80; ASME B31.3"]
[null,"Титул / Title",null,{"$f":"ВИК!D4","v":"﻿4.3.3.30.421"},"Номер чертежа / Drawing number.",{"$f":"ВИК!F4","v":"0055-4.3.3.30.421-TM1.IS-0290"},null,"от / issued",null,{"$f":"ВИК!I3","v":"21.12.2020"}]
[null,"Номер линии / Line number.",null,{"$f":"ВИК!D5","v":"4-30-331047"},"Категория трубопровода / Pipeline class:",{"$f":"ВИК!F5","v":"Б(а)-I / B(a)-I"}]
[null,"ПО КОНТРОЛЮ КАЧЕСТВА СВАРНЫХ СОЕДИНЕНИЙ КАПИЛЛЯРНЫМ МЕТОДОМ / LIQUID PENETRATON INSPECTION (LPI) OF WELDED JOINTS",null,null,null,null,null,null,null,null,null,null,null,null,null,null,null,"ВИК:",{"$f":"'Ввод данных'!V2","v":0}]
[null,"Контроль выполнен в соответствии с технологическим документом / Inspection is carried out in accordance with the process document:",null,null,null,null,null,null,null,null,null,null,"ТК-AЛЬФА-ПВК-01",null,null,null,null,"ПВК:",{"$f":"'Ввод данных'!AE2","v":0}]
[]
[null,"№                  П/П / Seq n-r","Номер сварного \nсоединения / Welded joint number.","Размер свариваемых элементов / Welded elements size, mm",null,null,null,"Клеймо\nсварщика / Welder code (stamp)","Средства контроля / Inspection means",null,null,"Условия проведения контроля (температура, освещенность, шероховатость) /\nConditions of inspection  (temperature,lighting,  roughness)","Описание выявленных дефектов (координаты по периметру шва) /\nDescription of detected  flows (Iocation along the welded seam perimeter)","ЗАКЛЮЧЕНИЕ\n(годен, ремонт, вырезать) /\nCONCLUSION (appropriate, repair, cut off) ","Примечание / Note",null,null,"УЗК:",{"$f":"'Ввод данных'!AB2","v":44186}]
[]
[null,1,2,3,null,null,null,4,5,null,null,6,7,8,9]
[null,1,{"$f":"ВИК!C12","v":"S2.8"},{"$f":"ВИК!D12","v":"60,3 x 8,74 + 60,3 x 8,74"},null,null,null,{"$f":"ВИК!G12","v":"95ML"},"Комплект / Set \n\"HELLING\" U87, U88, U89.\nЛюксметр \n\"ТКА-ПКМ\" (02) № 02 8862 / Luximeter No.02 8862",null,null," 15°; ≥1000 Лк / lx; Rz-20","недопустимых дефектов не обнаружено / unacceptable defects not detected","годен / appropriate",{"$f":"ВИК!N12","v":" "},null,null,"Дефект:",{"$f":"'Ввод данных'!AH4","v":0}]
[]
[null,"Контроль провел / Checked by:",null,null,null,null,"Пушкарский Ю.А. / Pushkarsky Y.A.",null,{"$f":"VLOOKUP(G15,'Уд-я'!A2:C18,3,0)","v":"2ур. № 0045-04-4066 до 2023-03-23/2 level No 0045-04-4066 till 2023-03-23"},null,null,null,null,null,{"$f":"ВИК!I3","v":"21.12.2020"}]
[null,null,null,null,null,null,"(фамилия, инициалы / surname and initials)",null,"(уровень квалификации, удостоверение / qualification, certificate)",null,null,null,null,"(подпись / signature)","(дата / date)"]
[null,"Начальник лаборатории / Laboratory Head:",null,null,null,null,"Сахнов Е.В. / Sahnov E.V.",null,{"$f":"VLOOKUP(G17,'Уд-я'!A4:C20,3,0)","v":"2 ур. № 0045-04-2989 до 2022-02-25/ 2 level No 0045-04-2989 till 2022-02-25"},null,null,null,null,null,{"$f":"ВИК!I3","v":"21.12.2020"}]
[null,null,null,null,null,null,"(фамилия, инициалы / surname and initials)",null,"(уровень квалификации, удостоверение / qualification, certificate)",null,null,null,null,"(подпись / signature)","(дата / date)"," "]
[null,"Заключение получил, с результатами контроля ознакомлен / I have received the report and have been familiarized with the results of the inspection:",null,null,null,null,null,null,null,null,null,null,null,null,{"$f":"J5","v":"21.12.2020"}]
[null,null,null,null,null,null,"(фамилия, инициалы / surname and initials)",null,"(должность / position)",null,null,null,null,"(подпись / signature)","(дата / date)"]

{"sheet":"МК","index":3,"n_rows":29,"n_cols":16,"rows_kept":29,"cut":false,"hidden":false,"merged":[[1,1,1,6],[1,7,1,11],[1,12,1,15],[2,1,2,6],[2,7,3,8],[2,9,3,9],[2,10,3,10],[2,11,3,11],[2,12,2,15],[3,1,3,3],[3,4,3,6],[3,12,5,14],[3,15,5,15],[4,1,4,2],[4,5,4,6],[4,7,5,8],[4,9,5,11],[5,1,5,2],[5,5,5,6],[6,1,6,15],[7,1,7,12],[7,13,7,15],[8,1,8,15],[9,1,10,1],[9,2,10,2],[9,3,10,6],[9,7,10,7],[9,8,10,10],[9,11,10,11],[9,12,10,12],[9,13,10,13],[9,14,10,14],[9,15,10,15],[11,3,11,6],[11,8,11,10],[12,3,12,6],[12,8,12,10],[13,1,13,15],[14,1,15,5],[14,6,14,7],[14,8,14,13],[15,6,15,7],[15,8,15,13],[18,1,19,5],[18,6,18,7],[18,8,18,13],[19,6,19,7],[19,8,19,13],[16,1,17,5],[16,6,16,7],[16,8,16,13],[17,6,17,7],[17,8,17,13]]}
[]
[null,{"$f":"ВИК!B1","v":"Наименование подрядной организации /Name of the construction contractor: Филиал Акционерной Компании \"Ямата Ятырым Иншаат Туризм ве Тиджарет Аноним Ширкети\" Yamata Yatirim Insaat Turizm ve Ticaret A.S."},null,null,null,null,null,null,null,null,null,null,"Наименование лаборатории / Name of the Laboratory:\nООО \"Альфа\" / LLC \"Alfa\""]
[null,{"$f":"[1]ВИК!B3","v":"Наименование обьекта / Project name:\nАмурский газоперерабатывающий завод. Этап 4. Газоперерабатывающий завод. Нелицензионные установки.\nAmursky gas Processing plant. Phase 4. Gas Processing plant. Non-Iicensed facilities."},null,null,null,null,null,"ЗАКЛЮЧЕНИЕ № /                  REPORT NO",null,{"$f":"ВИК!I2","v":"YMTP3-A-0131"},"MT",{"$f":"ВИК!K2","v":"30918"},"Номер cвидетельства № / license No 80А080340\nдействительно до / valid till  14.07.2022"]
[null,{"$f":"ВИК!B3","v":"Наименование технологического узла/ Name of the process unit:"},null,null,{"$f":"ВИК!E3","v":"P3Y70792"},null,null,null,null,null,null,null,"Наименование НТД, регламентирующего требования\nк оценке качества соединения / NDT regulating requirements for quality assesment of weld joints:",null,null,"ГОСТ 56512-2015; ASME VIII"]
[null,"Титул / Title",null,{"$f":"ВИК!D4","v":"﻿4.3.3.30.421"},"Номер чертежа / Drawing number.",{"$f":"ВИК!F4","v":"0055-4.3.3.30.421-TM1.IS-0290"},null,"от / issued",null,{"$f":"ВИК!I3","v":"21.12.2020"}]
[null,"Номер линии / Line number.",null,{"$f":"ВИК!D5","v":"4-30-331047"},"Категория трубопровода / Pipeline class:",{"$f":"ВИК!F5","v":"Б(а)-I / B(a)-I"}]
[null,"ПО КОНТРОЛЮ КАЧЕСТВА СВАРНЫХ СОЕДИНЕНИЙ МАГНИТОПОРОШКОВЫМ МЕТОДОМ / MAGNETIC PARTICLE INSPECTION (MPI) OF WELDED JOINTS"]
[null,"Контроль выполнен в соответствии с технологическим документом / Inspection is carried out in accordance with the process document:",null,null,null,null,null,null,null,null,null,null,null,"ТК-AЛЬФА-МПК-001"]
[]
[null,"№                  П/П / Seq n-r","Номер сварного \nсоединения / Welded joint number.","Размер свариваемых элементов / Welded elements size, mm",null,null,null,"Клеймо\nсварщика / Welder code (stamp)","Условия проведения контроля (температура, освещенность, шероховатость) /\nConditions of inspection  (temperature, flighting,  roughness)",null,null,"Средства контроля / Inspection means","Режимы контроля (способ)/ Inspection mode (method)","Описание выявленных дефектов (координаты по периметру шва) /\nDescription of detected  flows (Iocation along the welded seam perimeter)","ЗАКЛЮЧЕНИЕ\n(годен, ремонт, вырезать) /\nCONCLUSION (appropriate, repair, cut off) ","Примечание / Note"]
[]
[null,1,2,3,null,null,null,4,5,null,null,6,7,8,9,10]
[null,1,{"$f":"ВИК!C12","v":"S2.8"},{"$f":"ВИК!D12","v":"60,3 x 8,74 + 60,3 x 8,74"},null,null,null,{"$f":"ВИК!G12","v":"95ML"},"15°; ≥1000 Лк / lx; Rz-60",null,null,"Образцы шероховатости /roughness samples; контрольный образец /control sample; электромагнит /electromagnet РМ-5; комплект / set MR 71; MR 76S; WCP-2. Люксметр \"ТКА-ПКМ\" (02) № 02 8862 / Luximeter No.02 8862","способ приложенного магнитного поля/ \napplied magnetic field method","недопустимых дефектов не обнаружено / unacceptable\ndefects not detected","годен / appropriate"]
[]
[null,"Контроль провел / Checked by:",null,null,null,null,"Момот Н.В. / Momot N.V",null,{"$f":"VLOOKUP(G15,'Уд-я'!A:F,6,0)","v":"2 ур. № 0001-55604 до 2020-12-29/ 2 level No 0001-55604 till 2020-12-29"},null,null,null,null,null,null,{"$f":"J5","v":"21.12.2020"}]
[null,null,null,null,null,null,"(фамилия, инициалы / surname and initials)",null,"(уровень квалификации, удостоверение / qualification, certificate)",null,null,null,null,null,"(подпись / signature)","(дата / date)"]
[null,"Начальник лаборатории / Laboratory Head:",null,null,null,null,{"$f":"ВИК!F16","v":"Сахнов Е.В. / Sahnov E.V."},null,{"$f":"ВИК!H16","v":"2 ур. № 0045-04-2989 до 2022-02-25/ 2 level No 0045-04-2989 till 2022-02-25"},null,null,null,null,null,null,{"$f":"J5","v":"21.12.2020"}]
[null,null,null,null,null,null,"(фамилия, инициалы / surname and initials)",null,"(уровень квалификации, удостоверение / qualification, certificate)",null,null,null,null,null,"(подпись / signature)","(дата / date)"]
[null,"Заключение получил, с результатами контроля ознакомлен / I have received the report and have been familiarized with the results of the inspection:",null,null,null,null,null,null,null,null,null,null,null,null,null,{"$f":"J5","v":"21.12.2020"}]
[null,null,null,null,null,null,"(фамилия, инициалы / surname and initials)",null,"(должность / position)",null,null,null,null,null,"(подпись / signature)","(дата / date)"]
[]
[]
[null,null,null,null,null,null,null,null,null,null,null,null,"способ приложенного магнитного поля\n/ \napplied magnetic field method"]
[null,null,null,null,null,null,null,null,null,null,null,null,"способ остаточной намагниченности/ \nresidual magnetization method"]
[]
[]
[]
[]
[null,null,null,null,null,null,null,null,null,null,null,null,null,null,"Eb - трещина по всему периметру / crack on all perimeter"]

{"sheet":"РК","index":4,"n_rows":42,"n_cols":21,"rows_kept":42,"cut":false,"hidden":false,"merged":[[20,8,20,14],[18,1,18,16],[19,1,20,4],[19,5,19,7],[19,8,19,14],[14,3,17,6],[14,7,17,7],[23,1,24,4],[21,1,22,4],[20,5,20,7],[21,8,21,14],[22,8,22,14],[22,5,22,7],[14,1,17,1],[14,2,17,2],[14,15,17,15],[17,8,17,10],[1,1,1,6],[1,7,1,13],[9,1,9,16],[4,1,4,2],[4,5,4,6],[5,1,5,2],[5,5,5,6],[6,1,6,16],[8,1,8,5],[8,6,8,16],[3,16,5,16],[1,14,1,16],[2,1,2,6],[2,14,2,16],[2,10,3,10],[3,14,5,15],[3,4,3,6],[2,7,3,8],[7,1,7,13],[11,16,12,16],[24,5,24,7],[24,8,24,14],[21,5,21,7],[23,5,23,7],[41,4,41,5],[36,4,36,5],[37,4,37,5],[38,4,38,5],[39,4,39,5],[40,4,40,5],[40,6,40,7],[36,6,36,7],[39,6,39,7],[37,8,37,10],[33,6,33,13],[28,6,28,13],[27,1,27,5],[32,6,32,13],[31,6,31,13],[38,8,38,10],[39,8,39,10],[27,14,27,16],[23,8,23,14],[39,2,39,3],[31,1,31,5],[32,1,32,5],[36,2,36,3],[37,2,37,3],[38,2,38,3],[33,1,33,5],[33,14,33,16],[31,14,31,16],[32,14,32,16],[30,14,30,16],[29,14,29,16],[28,14,28,16],[37,6,37,7],[38,6,38,7],[36,8,36,10],[27,6,27,13],[28,1,28,5],[30,1,30,5],[29,1,29,5],[30,6,30,13],[29,6,29,13],[17,18,17,19],[15,8,15,10],[15,18,15,19],[2,9,3,9],[4,9,5,13],[14,18,14,19],[11,14,12,14],[11,11,12,13],[16,18,16,19],[10,1,10,16],[11,7,12,7],[11,8,12,10],[13,8,13,10],[11,3,12,6],[13,11,13,13],[11,15,12,15],[13,3,13,6],[11,1,12,1],[16,8,16,10],[14,8,14,10],[3,1,3,3],[2,11,3,13],[4,7,5,8],[11,2,12,2]]}
[]
[null,{"$f":"ВИК!B1","v":"Наименование подрядной организации /Name of the construction contractor: Филиал Акционерной Компании \"Ямата Ятырым Иншаат Туризм ве Тиджарет Аноним Ширкети\" Yamata Yatirim Insaat Turizm ve Ticaret A.S."},null,null,null,null,null,null,null,null,null,null,null,null,"Наименование лаборатории / Name of the Laboratory:\nООО \"Альфа\" / LLC \"Alfa\""]
[null,"Наименование обьекта / Project name:\nАмурский газоперерабатывающий завод. Этап 4. Газоперерабатывающий завод. Нелицензионные установки. \nAmursky gas Processing plant. Phase 4. Gas Processing plant. Non-Iicensed facilities. ",null,null,null,null,null,{"$f":"ПВК!H3","v":"ЗАКЛЮЧЕНИЕ № /                  REPORT NO"},null,{"$f":"ВИК!I2","v":"YMTP3-A-0131"},"RT",{"$f":"ВИК!K2","v":"30918"},null,null,"Номер cвидетельства № / license No 80А080340\nдействительно до / valid till  14.07.2022"]
[null,{"$f":"ВИК!B3","v":"Наименование технологического узла/ Name of the process unit:"},null,null,{"$f":"ВИК!E3","v":"P3Y70792"},null,null,null,null,null,null,null,null,null,"Наименование НТД, регламентирующего требования\nк оценке качества соединения / NDT regulating requirements for quality assesment of weld joints:",null," ГОСТ 32569-2013; ГОСТ 7512-82; ASME B31.3; ASME V"]
[null,"Титул / Title",null,{"$f":"ВИК!D4","v":"﻿4.3.3.30.421"},"Номер чертежа / Drawing number.",{"$f":"ВИК!F4","v":"0055-4.3.3.30.421-TM1.IS-0290"},null,"от / issued",null,{"$f":"ВИК!I3","v":"21.12.2020"}]
[null,"Номер линии / Line number.",null,{"$f":"ВИК!D5","v":"4-30-331047"},"Категория трубопровода / Pipeline class:",{"$f":"ВИК!F5","v":"Б(а)-I / B(a)-I"}]
[null,"ПО КОНТРОЛЮ КАЧЕСТВА СВАРНЫХ СОЕДИНЕНИЙ РАДИАЦИОННЫМ МЕТОДОМ /RT OF WELDED JOINTS"]
[null,"Контроль выполнен в соответствии с технологическим документом / Inspection is carried out in accordance with the process document:",null,null,null,null,null,null,null,null,null,null,null,null,{"$f":"IF(('Ввод данных'!E14>=0)*('Ввод данных'!E14<=100),ТК!F2,ТК!F3)","v":"ТК-АЛЬФА-РК-Э"},null,null,null,"ТК-AЛЬФА-РК-Ф"]
[null,"Оборудование (принадлежности) для контроля /                                                                      RT Equipment and Tools:",null,null,null,null,{"$f":"IF(('Ввод данных'!E14>=0)*('Ввод данных'!E14<=100),Аппараты!A13,IF(('Ввод данных'!E14>=101)*('Ввод данных'!E14<=273.1),Аппараты!A14,IF(('Ввод данных'!E14>=273.2),Аппараты!A15,\"Что-то пошло не так!!!\")))","v":"Рентгеновский аппарат «Март-200» №411; Рентгеновская пленка AGFA STRUCTURIX D7; Денситометр ДД-5005-220 №18-1020; Проявочная машина Colenta INDX 900Е №160621294; Негатоскоп светодиодный А3 Lumen 400/100 Зав. № 109  "},null,null,null,null,null,null,null,null,null,null,null,"ТК-AЛЬФА-РК-Э"]
[null,{"$f":"VLOOKUP(G9,Аппараты!A:AG,20,0)","v":"X-ray Machine Mart-200 No.411; X-ray film  AGFA STRUCTURIX D7; Densitometer DD-5005-220 No. 18-1020; Developing Machine Colenta INDX 900Е No. 160621294; LED Negatoscope  A3 Lumen 400/100  No 109"}]
[]
[null,"№                  П/П / Seq n-r","Номер сварного \nсоединения / Welded joint number.","Размер свариваемых элементов / Welded elements size, mm",null,null,null,"Клеймо\nсварщика / Welder code (stamp)","Номер снимка (координаты мерного пояса) /\nImage number (film belt position)",null,null,"Параметры снимка: Чувствительность снимка в (мм), величина Е.О.П.  / Image parameters: image sensitivity, (мм), optical density unit value",null,null,"Описание выявленных дефектов/\nDescription of the detected  defects","ЗАКЛЮЧЕНИЕ\n(годен, ремонт, вырезать) /\nCONCLUSION (appropriate, repair, cut off) ","Примечание / Note"]
[]
[null,1,2,3,null,null,null,4,5,null,null,6,null,null,7,8,9,null,null,null,"запил тела в ОШЗ"]
[null,1,{"$f":"ВИК!C12","v":"S2.8"},{"$f":"ВИК!D12","v":"60,3 x 8,74 + 60,3 x 8,74"},null,null,null,{"$f":"ВИК!G12","v":"95ML"},"П1",null,null,"0,2","/","2,8","дефектов не обнаружено / no defects detected","годен / appropriate",null,null,"П1",null,"риски в ОШЗ"]
[null,null,null,null,null,null,null,null,"П2",null,null,"0,2","/","2,8","дефектов не обнаружено / no defects detected",null,null,null,"П1",null,"инородное тело в трубе"]
[null,null,null,null,null,null,null,null,"П3",null,null,"0,2","/","2,8","дефектов не обнаружено / no defects detected",null,null,null,"П1",null,"инородное тело в трубе"]
[null,null,null,null,null,null,null,null,"П4",null,null,"0,2","/","2,8","дефектов не обнаружено / no defects detected",null,null,null,"П1",null,"инородное тело в трубе"]
[]
[null,"Контроль провел / Checked by:",null,null,null,"Коваленко А.П. / Kovalenko A.P.",null,null,{"$f":"VLOOKUP(F20,'Уд-я'!A:F,4,FALSE)","v":"2 ур. № 0039-8958 до 2023-02-14/ 2 level No 0039-8958 till 2023-02-14"},null,null,null,null,null,null,null,{"$f":"J5","v":"21.12.2020"},null,null,null,"инородное тело в ОШЗ"]
[null,null,null,null,null,"(фамилия, инициалы / surname and initials)",null,null,"(уровень квалификации, удостоверение / qualification, certificate)",null,null,null,null,null,null,"(подпись / signature)","(дата / date)"]
[null,"Начальник лаборатории / Laboratory Head:",null,null,null,{"$f":"ВИК!F16","v":"Сахнов Е.В. / Sahnov E.V."},null,null,{"$f":"ВИК!H16","v":"2 ур. № 0045-04-2989 до 2022-02-25/ 2 level No 0045-04-2989 till 2022-02-25"},null,null,null,null,null,null,null,{"$f":"J5","v":"21.12.2020"}]
[null,null,null,null,null,"(фамилия, инициалы / surname and initials)",null,null,"(уровень квалификации, удостоверение / qualification, certificate)",null,null,null,null,null,null,"(подпись / signature)","(дата / date)"]
[null,"Заключение получил, с результатами контроля ознакомлен / I have received the report and have been familiarized with the results of the inspection:",null,null,null,null,null,null,null,null,null,null,null,null,null,null,{"$f":"J5","v":"21.12.2020"}]
[null,null,null,null,null,"(фамилия, инициалы / surname and initials)",null,null,"(должность / position)",null,null,null,null,null,null,"(подпись / signature)","(дата / date)"]
[]
[]
[null,"Ea - Трещина вдоль шва / Longitudinal crack: ",null,null,null,null,"Ab - Цепочка пор / Aligned porosity: ",null,null,null,null,null,null,null,"Cc - Скопление вольфрама / Cluster tungsten inclusion:"]
[null,"Eb - Трещина поперек Шва / Transverse crack: ",null,null,null,null,"Ac - Скопление пор / Cluster porosity: ",null,null,null,null,null,null,null,"O - Окисные включения / Oxide inclusion:"]
[null,"Ec - Трещина разветвленная / Branched crack: ",null,null,null,null,"Ba - Отдельное включение шлака / Single slag inclusion: ",null,null,null,null,null,null,null,"Fa - Вогнутость корня шва / Root concavity:"]
[null,"Da - Непровар в корне / Incomplete root penetration: ",null,null,null,null,"Bb - Цепочка шлака / Aligned slag inclusion: ",null,null,null,null,null,null,null,"Fb - Выпуклость корня шва / Root convexity:"]
[null,"Db - Непровар между валиками / Incomplete inter-pass fusion: ",null,null,null,null,"Bc - Скопление шлака / Cluster slag inclusion: ",null,null,null,null,null,null,null,"Fc - Подрез / Undercut:"]
[null,"Dc - Непровар по разделке / Incomplete bevel fusion: ",null,null,null,null,"Ca - Отдельное включение вольфрама / Single tungsten inclusion: ",null,null,null,null,null,null,null,"Fd - Смещение кромок / High low bevel:"]
[null,"Aa - Отдельная пора / Single porosity: ",null,null,null,null,"Cb - Цепочка вольфрама / Aligned tungsten inclusion:",null,null,null,null,null,null,null,"Дефектов не обнаружено (ДНО) - No Defects"]
[]
[]
[null,null,"0-150",null,"0-200",null,"0-150",null,"0-100"]
[null,null,"150-300",null,"200-400",null,"150-300",null,"100-200",null,null,null,null,null,"дефектов не обнаружено / no defects detected"]
[null,null,"300-450",null,"400-600",null,"300-450",null,"200-300"]
[null,null,"450-0",null,"600-800",null,"450-600",null,"300-0"]
[null,null,null,null,"800-1000",null,"600-0"]
[null,null,null,null,"1000-0"]

{"sheet":"УК","index":5,"n_rows":33,"n_cols":21,"rows_kept":33,"cut":false,"hidden":false,"merged":[[9,4,9,5],[11,13,12,13],[9,1,9,3],[11,8,12,8],[11,9,12,10],[10,1,10,16],[11,16,12,16],[11,15,12,15],[11,14,12,14],[11,1,12,1],[11,2,12,3],[11,4,12,7],[11,11,12,12],[18,20,18,23],[14,2,16,3],[13,4,13,7],[13,11,13,12],[14,20,14,23],[16,11,16,12],[13,2,13,3],[14,11,14,12],[15,9,15,10],[15,11,15,12],[16,9,16,10],[4,4,4,5],[6,1,6,16],[5,6,5,7],[4,8,5,10],[4,11,5,13],[5,1,5,2],[7,19,8,19],[7,20,8,20],[8,14,8,15],[8,9,8,13],[7,1,7,12],[7,13,7,16],[8,1,8,3],[8,6,8,8],[8,4,8,5],[1,14,1,16],[2,1,2,7],[2,14,2,16],[1,1,1,7],[1,8,1,13],[2,8,3,10],[3,14,5,15],[3,16,5,16],[3,1,3,3],[3,4,3,7],[5,4,5,5],[4,1,4,2],[2,13,3,13],[2,11,3,11],[4,6,4,7],[2,12,3,12],[22,6,22,8],[20,1,21,5],[17,1,17,16],[18,6,18,8],[18,9,18,14],[18,1,19,5],[22,1,23,5],[20,6,20,8],[22,9,22,14],[21,9,21,14],[14,1,16,1],[26,9,26,10],[26,11,26,12],[9,14,9,15],[9,6,9,8],[9,9,9,13],[20,9,20,14],[21,6,21,8],[13,9,13,10],[19,6,19,8],[19,9,19,14],[14,8,16,8],[14,9,14,10],[14,4,16,7],[23,6,23,8],[23,9,23,14]]}
[]
[null,{"$f":"ВИК!B1","v":"Наименование подрядной организации /Name of the construction contractor: Филиал Акционерной Компании \"Ямата Ятырым Иншаат Туризм ве Тиджарет Аноним Ширкети\" Yamata Yatirim Insaat Turizm ve Ticaret A.S."},null,null,null,null,null,null,null,null,null,null,null,null,"Наименование лаборатории / Name of the Laboratory:\nООО \"Альфа\" / LLC \"Alfa\""]
[null,"Наименование обьекта / Project name:\nАмурский газоперерабатывающий завод. Этап 4. Газоперерабатывающий завод. Нелицензионные установки. \nAmursky gas Processing plant. Phase 4. Gas Processing plant. Non-Iicensed facilities.",null,null,null,null,null,null,{"$f":"ПВК!H3","v":"ЗАКЛЮЧЕНИЕ № /                  REPORT NO"},null,null,{"$f":"ВИК!I2","v":"YMTP3-A-0131"},"UT",{"$f":"ВИК!K2","v":"30918"},"Номер cвидетельства № / license No 80А080340\nдействительно до / valid till  14.07.2022"]
[null,{"$f":"ВИК!B3","v":"Наименование технологического узла/ Name of the process unit:"},null,null,{"$f":"ВИК!E3","v":"P3Y70792"},null,null,null,null,null,null,null,null,null,"Наименование НТД, регламентирующего требования\nк оценке качества соединения / NDT regulating requirements for quality assesment of weld joints:",null," ГОСТ P 55724-2013; ГОСТ 32569-2013; ASME B31.3"]
[null,"Титул / Title",null,{"$f":"ВИК!D4","v":"﻿4.3.3.30.421"},"Номер чертежа / Drawing number.",null,{"$f":"ВИК!F4","v":"0055-4.3.3.30.421-TM1.IS-0290"},null,"от / issued",null,null,{"$f":"ВИК!I3","v":"21.12.2020"}]
[null,"Номер линии / Line number.",null,{"$f":"ВИК!D5","v":"4-30-331047"},"Категория трубопровода / Pipeline class:",null,{"$f":"ВИК!F5","v":"Б(а)-I / B(a)-I"}]
[null,"ПО КОНТРОЛЮ КАЧЕСТВА СВАРНЫХ СОЕДИНЕНИЙ УЛЬТРАЗВУКОВЫМ МЕТОДОМ  /  ULTRASONIK TEST OF WELDED JOINTS",null,null,null,null,null,null,null,null,null,null,null,null,null,null,null,null,null,"ВИК:",{"$f":"'Ввод данных'!V2","v":0}]
[null,"Контроль выполнен в соответствии с технологическим документом / Inspection is carried out in accordance with the process document:",null,null,null,null,null,null,null,null,null,null,null,{"$f":"VLOOKUP(E15,'Для УЗК'!A:G,2, )","v":"ТК-АЛЬФА-УК-01"},null,null,null,null,null,"ПВК:",{"$f":"'Ввод данных'!AE2","v":0}]
[null,"Дефектоскоп / Detector:",null,null,"MASTER А1212 № 4142094  2018 г.",null,"ПЭП (тип, частота, угол вода, пр.) / SEP (type, frequency, entry angle, etc.):",null,null,{"$f":"VLOOKUP(E15,'Для УЗК'!A2:G480,3,FALSE)","v":"ПЭП П121-5,0-70 №1245344"},null,null,null,null,"Sбрак мм²: / Sflow, mm2:",null,{"$f":"VLOOKUP(E15,'Для УЗК'!A2:G493,6,FALSE)","v":"-"}]
[null,"СОП / SOP:",null,null,{"$f":"VLOOKUP(E15,'Для УЗК'!A2:G140,4,FALSE)","v":"НО-ТТР 60,3/8,74-2,0х1,0 ст.20; №1564-20; СО2 №4598; \nСО3 №4640"},null,"Форма и размер искусственного отражателя / Artificial reflector shape and size:",null,null,{"$f":"VLOOKUP(E15,'Для УЗК'!A2:G133,5,FALSE)","v":"Зарубка 2,0x1 мм"},null,null,null,null,"Поправки чувствительности: / Sensibility allowances:",null,{"$f":"VLOOKUP(E15,'Для УЗК'!A2:G310,7,FALSE)","v":" -"},null,null,"УЗК:",{"$f":"'Ввод данных'!AB2","v":44186}]
[]
[null,"№                  П/П / Seq n-r","Номер сварного \nсоединения / Welded joint number.",null,"Размер свариваемых элементов / Welded elements size, mm",null,null,null,"Шифр (клеймо)\nсварщика / Welder code (stamp)","Глубина залегания \"Y\", мм /                                     Depth of burial «B», mm.",null,"Протяженность ΔL, мм / Length, ΔL, mm.",null,"Форма (характер) дефекта /                       Form (character) of the flaw ","Местоположение на сварном соединение L, мм /  Location at the welded joint, \nL, mm.","ЗАКЛЮЧЕНИЕ\n(годен, ремонт, вырезать) /\nCONCLUSION (appropriate, repair, cut off) ","Примечание  / Note"]
[]
[null,1,2,null,3,null,null,null,4,5,null,6,null,7,8,9,10]
[null,1,{"$f":"ВИК!C12","v":"S2.8"},null,{"$f":"ВИК!D12","v":"60,3 x 8,74 + 60,3 x 8,74"},null,null,null,{"$f":"ВИК!G12","v":"95ML"},"-",null,"-",null,"дефектов не обнаружено /         no defects detected","-","годен / appropriate",null,null,null,"Дефект:",{"$f":"'Ввод данных'!AH4","v":0}]
[null,null,null,null,null,null,null,null,null,"9,2",null,"10,0",null,"плоскостной / planar",95,"ремонт / repair"]
[null,null,null,null,null,null,null,null,null,"9,5",null,"10,0",null,"плоскостной / planar",568,"ремонт / repair"]
[]
[null,"Контроль провел / Checked by:",null,null,null,null,"Рахимьянов А.В. /\nRakhimyanov A.V.",null,null,{"$f":"VLOOKUP(G19,'Уд-я'!A:E,5,0)","v":"2 ур. № 0045-04-3843 до 2022-12-16 / 2 level No 0045-04-3843 till 2022-12-16"},null,null,null,null,null,null,{"$f":"L5","v":"21.12.2020"}]
[null,null,null,null,null,null,"(фамилия, инициалы / surname and initials)",null,null,"(уровень квалификации, удостоверение / qualification, certificate)",null,null,null,null,null,"(подпись / signature)","(дата / date)"]
[null,"Начальник лаборатории / Laboratory Head:",null,null,null,null,{"$f":"ВИК!F16","v":"Сахнов Е.В. / Sahnov E.V."},null,null,{"$f":"ВИК!H16","v":"2 ур. № 0045-04-2989 до 2022-02-25/ 2 level No 0045-04-2989 till 2022-02-25"},null,null,null,null,null,null,{"$f":"L5","v":"21.12.2020"},null,null,", "]
[null,null,null,null,null,null,"(фамилия, инициалы / surname and initials)",null,null,"(уровень квалификации, удостоверение / qualification, certificate)",null,null,null,null,null,"(подпись / signature)","(дата / date)"]
[null,"Заключение получил, с результатами контроля ознакомлен / I have received the report and have been familiarized with the results of the inspection:",null,null,null,null,null,null,null,null,null,null,null,null,null,null,{"$f":"L5","v":"21.12.2020"}]
[null,null,null,null,null,null,"(фамилия, инициалы / surname and initials)",null,null,"(должность / position)",null,null,null,null,null,"(подпись / signature)","(дата / date)"]
[]
[]
[null,null,null,null,null,null,null,null,null," -",null,"-",null,"дефектов не обнаружено /         no defects detected"," -","годен / appropriate"]
[]
[null,null,null,null,null,null,null,null,null,null,null,null,null,"годен / appropriate"]
[null,null,null,", ",null,null,null,null,null,null,null,null,null,"ремонт / repair"]
[null,null,null,null,null,null,null,null,null,null,null,null,null,"вырезать /  cut off"]
[]
[null,null,null,null,null,null,null,null,null,null,null,null,null,"плоскостной / planar"]

{"sheet":"Уд-я","index":6,"n_rows":20,"n_cols":6,"rows_kept":20,"cut":false,"hidden":false,"merged":[]}
["Ф.И.О.","ВИК","ПВК","РК","УК","МК"]
["Джилкайдаров Э.К. / Dzhilkaidarov E.K.","2 ур. № 0039-10075 до 2020-12-29/ 2 level No 0039-10075 till 2020-12-29",null,"2 ур. № 0039-10075 до 2020-12-29/ 2 level No 0039-10075 till 2020-12-29"]
["Хохленко А.А. / Khokhlenko A.A.","2 ур. № 0034-23027-2017 до 2020-09-01/ 2 level No 0034-23027-2017 till 2020-09-01","2 ур. № 0034-23027-2017 до 2020-09-01/ 2 level No 0034-23027-2017 till 2020-09-01","2 ур. № 0034-23027-2017 до 2020-09-01/ 2 level No 0034-23027-2017 till 2020-09-01","2 ур. № 0034-23027-2017 до 2020-09-01/ 2 level No 0034-23027-2017 till 2020-09-01","2 ур. № 0034-23027-2017 до 2020-09-01/ 2 level No 0034-23027-2017 till 2020-09-01"]
["Берлизов А.Н. / Berlizov A. N.",null,null,null,"2 ур. №0045-04-3668 до 2023-07-27/ 2 level No 0045-04-3668 till 2023-07-27"]
["Рагулин А.Б./ Ragulin A.B.","2 ур. № 0039-9438 до 2020-02-02/ 2 level No 0039-9438 till 2020-02-02","2 ур. № 0039-9438 до 2020-02-02/ 2 level No 0039-9438 till 2020-02-02",null,"2 ур. № 0039-9438 до 2020-02-02/ 2 level No 0039-9438 till 2020-02-02"]
["Фурсов И.А. / Fursov I.A.","II ур. № -0045-04-2875",null,"II ур. № -0045-04-2875"]
["Синицын И.Н./ Sinitsyn I.N.","2 ур. № 0045-04-2304 до 2021-07-02/ 2 level No 0045-04-2304 till 2021-07-02",null,"2 ур. № 0045-04-2304 до 2021-07-02/ 2 level No 0045-04-2304 till 2021-07-02"]
["Левин Г.Е./ Levin G.E.","2 ур. № 0005-02-7978 до 2021-01-23/ 2 level No 0005-02-7978 till 2021-01-23",null,"2 ур. № 0005-02-7978 до 2021-01-23/ 2 level No 0005-02-7978 till 2021-01-23"]
["Момот Н.В. / Momot N.V","2 ур. № 0001-55604 до 2020-09-08/ 2 level No 0001-55604 till 2020-09-08","2 ур. № 0039-11753 до 2022-02-01/ 2 level No 0039-11753 till 2022-02-01","2 ур. № 0001-55604 до 2020-12-29/ 2 level No 0001-55604 till 2020-12-29","2 ур. № 0039-11753 до 2022-02-01/ 2 level No 0039-11753 till 2022-02-01","2 ур. № 0001-55604 до 2020-12-29/ 2 level No 0001-55604 till 2020-12-29"]
["Свинин В.В. / Svinin V.V.","2 ур. № 0039-04-4746 до 2021-02-09/ 2 level No 0039-04-4746 till 2021-02-09","2 ур. № 0039-04-4746 до 2021-02-09/ 2 level No 0039-04-4746 till 2021-02-09","2 ур. № 0039-04-4746 до 2021-02-09/ 2 level No 0039-04-4746 till 2021-02-09","2 ур. № 0039-04-4746 до 2021-02-09/ 2 level No 0039-04-4746 till 2021-02-09","2 ур. № 0039-04-4746 до 2021-02-09/ 2 level No 0039-04-4746 till 2021-02-09"]
["Абдулин Р.Р. / Abdulin R.R.","II ур. № 0045-04-3510",null,"II ур. № 0045-04-3510"]
["Егоров С.Л.","II ур. № 13-4259-2017",null,"II ур. № 13-4259-2017"]
["Коваленко А.П. / Kovalenko A.P.","2 ур. № 0039-8958 до 2023-02-14/ 2 level No 0039-8958 till 2023-02-14",null,"2 ур. № 0039-8958 до 2023-02-14/ 2 level No 0039-8958 till 2023-02-14"]
["Жданов А.М. / Zhdanov A.M.","2 ур. № 0048-2166 до 2021-10-04 / 2 level No 0048-2166 till 2021-10-04",null,"2 ур. № 0048-2166 до 2021-10-04 / 2 level No 0048-2166 till 2021-10-04"]
["Рыжков А.А / Ryzhkov A.A.",null,null,"2 ур. № 0039-14703 до 2022-02-01 / 2 level No 0039-14703 till 2022-02-01","2 ур. № 0039-14703 до 2022-02-01 / 2 level No 0039-14703 till 2022-02-01"]
["Соловьев Е.А. / Solovyov E.A.","2 ур. № 0034-33457-2017 до 2020-06-02 / 2 level No 0034-33457-2017 till 2020-06-02","2 ур. № 0034-33457-2017 до 2020-08-25 / 2 level No 0034-33457-2017 till 2020-08-25"]
["Пушкарский Ю.А. / Pushkarsky Y.A.","2ур. № 0045-04-4066 до 2023-06-29/2 level No 0045-04-4066 till 2023-06-29","2ур. № 0045-04-4066 до 2023-03-23/2 level No 0045-04-4066 till 2023-03-23"]
["Рахимьянов А.В. /\nRakhimyanov A.V.",null,null,null,"2 ур. № 0045-04-3843 до 2022-12-16 / 2 level No 0045-04-3843 till 2022-12-16"]
["Борсуковская Н.Н. / Borsukovskaya N.N.",null,null,null,"2 ур. № 0045-04-4065 до 2023-03-23 / 2 level No 0045-04-4065 till 2023-03-23"]
["Сахнов Е.В. / Sahnov E.V.","2 ур. № 0045-04-2989 до 2022-02-25/ 2 level No 0045-04-2989 till 2022-02-25","2 ур. № 0045-04-2989 до 2022-02-25/ 2 level No 0045-04-2989 till 2022-02-25","2 ур. № 0045-04-2989 до 2022-02-25/ 2 level No 0045-04-2989 till 2022-02-25","2 ур. № 0045-04-2989 до 2022-02-25/ 2 level No 0045-04-2989 till 2022-02-25"]

{"sheet":"СМУ","index":7,"n_rows":12,"n_cols":2,"rows_kept":12,"cut":false,"hidden":false,"merged":[]}
["Ф.И.О.","ВИК"]
["Баляков В.Н. / Balyakow V.N.","№ СВР-4ГАЦ-IV-00026"]
["Григорьев А.В. / Grigorev A.V.","№ ТОР-5AЦ-III-00215"]
["Добровольский А.А. / Dobrovolsky A.A.","№ СУР-13АЦ-II-10640"]
["Золотницын В.Н. / Zolotnitsyn V.N.","№ ТОР-5AЦ-II-00879"]
["Кристосов С.А. / Kristosov S.A.","№ ТОР-6AЦ-II-00014"]
["Лихолет Е.А. / Likholet E.A.","№ СУР-17АЦ-II-01330"]
["Лябчук И.А. / Lyabchuk I.A.","№ ЮР-10AЦ-II-01238"]
[" / ","№"]
["Сельберберг Ю.О./ Selberberg U.O.","№ СУР-13АЦ-II-10643"]
["Скрынник Е.В. / Skrynnik E.V.","№ ТОР-5AЦ-II-00989"]
["Туренко А.А. / Turenko A.A.","№ ЮР-10АЦ-II-01633      "]

{"sheet":"Аппараты","index":8,"n_rows":20,"n_cols":20,"rows_kept":20,"cut":false,"hidden":false,"merged":[[13,0,13,17],[13,19,13,32],[19,19,19,32],[6,19,6,32],[7,19,7,32],[8,19,8,32],[9,19,9,32],[10,19,10,32],[11,19,11,32],[12,19,12,32],[15,19,15,32],[16,19,16,32],[17,19,17,32],[18,19,18,32],[14,0,14,17],[14,19,14,32],[5,19,5,32],[0,19,0,32],[1,19,1,32],[2,19,2,32],[3,19,3,32],[4,19,4,32]]}
["Рентгеновский аппарат «Comet PXS EVO 225D» №849843; Рентгеновская пленка Kodak AA400; Денситометр ДП-5004 №1647; Проявочная машина Colenta INDX 4З 2.0b №16621298 /  ",null,null,null,null,null,null,null,null,null,null,null,null,null,null,null,null,null,"ENG","X-ray Machine Comet PXS EVO 225D No.849843; X-ray film  Kodak AA400; Densitometer DP-5004 No.1647; Developing Machine No. 16621298"]
["Рентгеновский аппарат «Comet PXS EVO 225D» №849844; Рентгеновская пленка Kodak AA400; Денситометр ДП-5004 №1647; Проявочная машина Colenta INDX 4З 2.0b №16621298 /  ",null,null,null,null,null,null,null,null,null,null,null,null,null,null,null,null,null,"ENG","X-ray Machine Comet PXS EVO 225D No.849844; X-ray film  Kodak AA400; Densitometer DP-5004 No.1647; Developing Machine No. 16621298"]
["Рентгеновский аппарат «Comet PXS EVO 300DS» №871741; Рентгеновская пленка Kodak AA400; Денситометр ДП-5004 №1647; Проявочная машина Colenta INDX 4З 2.0b №16621298 /  ",null,null,null,null,null,null,null,null,null,null,null,null,null,null,null,null,null,"ENG","X-ray Machine Comet PXS EVO 300DS No.871741; X-ray film  Kodak AA400; Densitometer DP-5004 No.1647; Developing Machine No. 16621298"]
["Рентгеновский аппарат «Comet PXS EVO 300P» №740293; Рентгеновская пленка Kodak AA400; Денситометр ДП-5004 №1647; Проявочная машина Colenta INDX 4З 2.0b №16621298 /  ",null,null,null,null,null,null,null,null,null,null,null,null,null,null,null,null,null,"ENG","X-ray Machine Comet PXS EVO 300P No.740293; X-ray film  Kodak AA400; Densitometer DP-5004 No.1647; Developing Machine No. 16621298"]
["Рентгеновский аппарат «Comet PXS EVO 300P» №849841; Рентгеновская пленка Kodak AA400; Денситометр ДП-5004 №1647; Проявочная машина Colenta INDX 4З 2.0b №16621298 /  ",null,null,null,null,null,null,null,null,null,null,null,null,null,null,null,null,null,"ENG","X-ray Machine Comet PXS EVO 300P No.849841; X-ray film  Kodak AA400; Densitometer DP-5004 No.1647; Developing Machine No. 16621298"]
["Рентгеновский аппарат «Comet PXS EVO 300P» №849842; Рентгеновская пленка Kodak AA400; Денситометр ДП-5004 №1647; Проявочная машина Colenta INDX 4З 2.0b №16621298 /  ",null,null,null,null,null,null,null,null,null,null,null,null,null,null,null,null,null,"ENG","X-ray Machine Comet PXS EVO 300P No.849842; X-ray film  Kodak AA400; Densitometer DP-5004 No.1647; Developing Machine No. 16621298"]
["Рентгеновский аппарат «Comet PXS EVO 225D» №849843; Рентгеновская пленка Kodak T200; Денситометр ДП-5004 №1647; Проявочная машина Colenta INDX 4З 2.0b №16621298 /  ",null,null,null,null,null,null,null,null,null,null,null,null,null,null,null,null,null,"ENG","X-ray Machine Comet PXS EVO 225D No.849843; X-ray film  Kodak T200; Densitometer DP-5004 No.1647; Developing Machine No. 16621298"]
["Рентгеновский аппарат «Comet PXS EVO 225D» №849844; Рентгеновская пленка Kodak T200; Денситометр ДП-5004 №1647; Проявочная машина Colenta INDX 4З 2.0b №16621298 /  ",null,null,null,null,null,null,null,null,null,null,null,null,null,null,null,null,null,"ENG","X-ray Machine Comet PXS EVO 225D No.849844; X-ray film  Kodak T200; Densitometer DP-5004 No.1647; Developing Machine No. 16621298"]
["Рентгеновский аппарат «Co» №871741; Рентгеновская пленка Kodak T200; Денситометр ДП-5004 №1647; Проявочная машина Colenta INDX 4З 2.0b №16621298 /  ",null,null,null,null,null,null,null,null,null,null,null,null,null,null,null,null,null,"ENG","X-ray Machine Comet PXS EVO 300DS No.871741; X-ray film  Kodak T200; Densitometer DP-5004 No.1647; Developing Machine No. 16621298"]
["Рентгеновский аппарат «Comet PXS EVO 300P» №740293; Рентгеновская пленка Kodak T200; Денситометр ДП-5004 №1647; Проявочная машина Colenta INDX 4З 2.0b №16621298 /  ",null,null,null,null,null,null,null,null,null,null,null,null,null,null,null,null,null,"ENG","X-ray Machine Comet PXS EVO 300P No.740293; X-ray film  Kodak T200; Densitometer DP-5004 No.1647; Developing Machine No. 16621298"]
["Рентгеновский аппарат «Comet PXS EVO 300P» №849841; Рентгеновская пленка Kodak T200; Денситометр ДП-5004 №1647; Проявочная машина Colenta INDX 4З 2.0b №16621298 /  ",null,null,null,null,null,null,null,null,null,null,null,null,null,null,null,null,null,"ENG","X-ray Machine Comet PXS EVO 300P No.849841; X-ray film  Kodak T200; Densitometer DP-5004 No.1647; Developing Machine No. 16621298"]
["Рентгеновский аппарат «Comet PXS EVO 300P» №849842; Рентгеновская пленка Kodak T200; Денситометр ДП-5004 №1647; Проявочная машина Colenta INDX 4З 2.0b №16621298 /  ",null,null,null,null,null,null,null,null,null,null,null,null,null,null,null,null,null,"ENG","X-ray Machine Comet PXS EVO 300P No.849842; X-ray film  Kodak T200; Densitometer DP-5004 No.1647; Developing Machine No. 16621298"]
["Рентгеновский аппарат «Март-200» №411; Рентгеновская пленка AGFA STRUCTURIX D7; Денситометр ДД-5005-220 №18-1020; Проявочная машина Colenta INDX 900Е №160621294; Негатоскоп светодиодный А3 Lumen 400/100 Зав. № 109  ",null,null,null,null,null,null,null,null,null,null,null,null,null,null,null,null,null,"ENG","X-ray Machine Mart-200 No.411; X-ray film  AGFA STRUCTURIX D7; Densitometer DD-5005-220 No. 18-1020; Developing Machine Colenta INDX 900Е No. 160621294; LED Negatoscope  A3 Lumen 400/100  No 109"]
["Рентгеновский аппарат «0,3 СБК 200 С» №1802; Рентгеновская пленка AGFA STRUCTURIX D7; Денситометр ДД-5005-220 №18-1020; Проявочная машина Colenta INDX 900Е №160621294; Негатоскоп светодиодный А3 Lumen 400/100 Зав. № 109  ",null,null,null,null,null,null,null,null,null,null,null,null,null,null,null,null,null,"ENG","X-ray Machine «0,3 СБК 200 С» No 1802; X-ray film  AGFA STRUCTURIX D7; Densitometer DD-5005-220 No. 18-1020; Developing Machine Colenta INDX 900Е No. 160621294; LED Negatoscope A3 Lumen 400/100 No 109"]
["Рентгеновский аппарат «Ray Craft GP-250» №16780; Рентгеновская пленка AGFA STRUCTURIX D7; Денситометр ДД-5005-220 №18-1020; Проявочная машина Colenta INDX 900Е №160621294; Негатоскоп светодиодный А3 Lumen 400/100 Зав. № 109  ",null,null,null,null,null,null,null,null,null,null,null,null,null,null,null,null,null,"ENG","X-ray Machine «Ray Craft GP-250» No 16780; X-ray film  AGFA STRUCTURIX D7; Densitometer DD-5005-220 No. 18-1020; Developing Machine Colenta INDX 900Е No. 160621294; LED Negatoscope A3 Lumen 400/100 No 109"]
["Рентгеновский аппарат «Comet PXS EVO 225D» №849844; Рентгеновская пленка AGFA STRUCTURIX D7; Денситометр ДП-5004 №1647; Проявочная машина Colenta INDX 4З 2.0b №16621298 /  ",null,null,null,null,null,null,null,null,null,null,null,null,null,null,null,null,null,"ENG","X-ray Machine Comet PXS EVO 225D No.849844; X-ray film  AGFA STRUCTURIX D7; Densitometer DP-5004 No.1647; Developing Machine No. 16621298"]
["Рентгеновский аппарат «Comet PXS EVO 300DS» №871741; Рентгеновская пленка AGFA STRUCTURIX D7; Денситометр ДП-5004 №1647; Проявочная машина Colenta INDX 4З 2.0b №16621298 /  ",null,null,null,null,null,null,null,null,null,null,null,null,null,null,null,null,null,"ENG","X-ray Machine Comet PXS EVO 300DS No.871741; X-ray film  AGFA STRUCTURIX D7; Densitometer DP-5004 No.1647; Developing Machine No. 16621298"]
["Рентгеновский аппарат «Comet PXS EVO 300P» №740293; Рентгеновская пленка AGFA STRUCTURIX D7; Денситометр ДП-5004 №1647; Проявочная машина Colenta INDX 4З 2.0b №16621298 /  ",null,null,null,null,null,null,null,null,null,null,null,null,null,null,null,null,null,"ENG","X-ray Machine Comet PXS EVO 300P No.740293; X-ray film  AGFA STRUCTURIX D7; Densitometer DP-5004 No.1647; Developing Machine No. 16621298"]
["Рентгеновский аппарат «Comet PXS EVO 300P» №849841; Рентгеновская пленка AGFA STRUCTURIX D7; Денситометр ДП-5004 №1647; Проявочная машина Colenta INDX 4З 2.0b №16621298 /  ",null,null,null,null,null,null,null,null,null,null,null,null,null,null,null,null,null,"ENG","X-ray Machine Comet PXS EVO 300P No.849841; X-ray film  AGFA STRUCTURIX D7; Densitometer DP-5004 No.1647; Developing Machine No. 16621298"]
["Рентгеновский аппарат «Comet PXS EVO 300P» №849842; Рентгеновская пленка AGFA STRUCTURIX D7; Денситометр ДП-5004 №1647; Проявочная машина Colenta INDX 4З 2.0b №16621298 /  ",null,null,null,null,null,null,null,null,null,null,null,null,null,null,null,null,null,"ENG","X-ray Machine Comet PXS EVO 300P No.849842; X-ray film  AGFA STRUCTURIX D7; Densitometer DP-5004 No.1647; Developing Machine No. 16621298"]

{"sheet":"ТК","index":9,"n_rows":9,"n_cols":8,"rows_kept":9,"cut":false,"hidden":false,"merged":[[0,0,0,2],[0,3,0,5]]}
["ВИК",null,null,"РК"]
["ТК-ВЕЛ-ВИК-2,77-38,1",null,null,"ТК-ВЕЛ-РК-П",null,"ТК-АЛЬФА-РК-Э","Ø от 0 до 100 мм",13]
["ТК-ВЕЛ-ВИК-Вр",null,null,"ТК-ВЕЛ-РК-Ф",null,"ТК-АЛЬФА-РК-Ф","Ø от 101 до 273,1 мм",14]
["ТК-ВЕЛ-ВИК-О",null,null,"ТК-ВЕЛ-РК-Э",null,"ТК-АЛЬФА-РК-Ф","Ø от 273,2 мм",15]
["ТК-ВЕЛ-ВИК-Рт"]
[]
["ТК-АЛЬФА-ВИК-02"]
["ТК-АЛЬФА-ВИК-2,77-50"]
[null,null,null,null,null,"ТК-АЛЬФА-РК-Э"]

{"sheet":"Для УЗК","index":10,"n_rows":61,"n_cols":7,"rows_kept":61,"cut":false,"hidden":false,"merged":[]}
["Размер трубы","ТК","ПЭП","СОП","Зарубка","Sбрак","Поправки чувствительности"]
["114,3 x 8,56 + 114,3 x 8,56","ТК-АЛЬФА-УК-01","ПЭП П121-5,0-70 №124953","НО-114/8,5-2,0х1,0 ст.20; №3426; СО2 №4598; \nСО3 №4640","Зарубка 2x1 мм",1.6," -"]
["114,3 x 13,49 + 114,3 x 13,49","ТК-АЛЬФА-УК-03","ПЭП  П121-5,0-65 №99791","НО-114/13-2,0х2,0 ст.20 №3428; СО2 №4598; \nСО3 №4640 ","Зарубка 2x2 мм","2.0"," -"]
["141,3 x 12,7 + 141,3 x 12,7","ТК-АЛЬФА-УК-03","ПЭП  П121-2,5-65 Ø141 №160038","НО-141/12,7-2,0х2,0 ст.20 №0727-20; СО2 №4598; \nСО3 №4640","Зарубка 2,0x2,0 мм","2.0"," -"]
["168,3 x 10,97 + 168,3 x 10,97","ТК-АЛЬФА-УК-01","ПЭП  П121-5,0-65 №160175","НО-168/11-65°-2,0-1,6 ст.20 №3429;СО3 №4640;\nСО2 №4598;                                                                                                                                                     ","Зарубка 2x1,6 мм",1.6,-2.9]
["168,3 x 10,97 + 168 x 10,97","ТК-АЛЬФА-УК-01","ПЭП  П121-5,0-65 №160175","НО-168/11-65°-2,0-1,6 ст.20 №3429;СО3 №4640;\nСО2 №4598;                                                                                                                                                     ","Зарубка 2x1,6 мм",1.6,-2.9]
["168,3 x 14,27 + 168,3 x 14,27","ТК-АЛЬФА-УК-03","ПЭП  П121-5,0-65 №160175","НО-168/14-2,0х2,0 СТ.20 №3430; СО2 №4598; \nСО3 №4640 ","Зарубка 2x2 мм","2.0"," -"]
["168,3 x 18,26 + 168,3 x 18,26","ТК-АЛЬФА-УК-03","ПЭП  П121-5,0-65 №164737","НО-168/18-2,0х2,0 ст.20 №3431; СО2 №4598; \nСО3 №4640 ","Зарубка 2x2 мм","2.0"," -"]
["219,1 x 8,18 + 219,1 x 8,18","ТК-АЛЬФА-УК-01","ПЭП П121-5,0-70 №137584","НО-219/8-2,0х1,0 СТ.20 №3432; СО2 №4598; \nСО3 №4640","Зарубка 2x1 мм",1.6," -"]
["219,1 x 12,7 + 219,1 x 12,7","ТК-АЛЬФА-УК-03","ПЭП  П121-5,0-65 №99899","НО-219/13-2,0-2,0 СТ.20 №3433; СО2 №4598; \nСО3 №4640 ","Зарубка 2x2 мм","2.0"," -"]
["219,1 x 12,7 + 219 x 12,7","ТК-АЛЬФА-УК-03","ПЭП  П121-5,0-65 №99899","НО-219/13-2,0-2,0 СТ.20 №3433; СО2 №4598; \nСО3 №4640 ","Зарубка 2x2 мм","2.0"," -"]
["219,1 x 15,09 + 219,1 x 15,09","ТК-АЛЬФА-УК-03","ПЭП  П121-5,0-65 №99899","НО-219/15,09-2,0-2,0 СТ.20 №0844-20; СО2 №4598; \nСО3 №4640 ","Зарубка 2x2 мм","2.0"," -"]
["273 x 9,27 + 273 x 9,27","ТК-АЛЬФА-УК-01","ПЭП  П121-5,0-70 №137526","НО-273/9-65°-2,0х1,3  №3434; СО2 №4598; \nСО3 №4640 ","Зарубка 2x1,3 мм",1.6," 1,15"]
["273 x 9,27 + 273,1 x 9,27","ТК-АЛЬФА-УК-01","ПЭП  П121-5,0-70 №137526","НО-273/9-65°-2,0х1,3  №3434; СО2 №4598; \nСО3 №4640 ","Зарубка 2x1,3 мм",1.6," 1,15"]
["273,1 x 9,27 + 273,1 x 9,27","ТК-АЛЬФА-УК-01","ПЭП  П121-5,0-70 №137526","НО-273/9-65°-2,0х1,3  №3434; СО2 №4598; \nСО3 №4640 ","Зарубка 2x1,3 мм",1.6," 1,15"]
["273,1 x 12,7 + 273,1 x 12,7","ТК-АЛЬФА-УК-03","ПЭП  П121-5,0-65 №164738","НО-273/12-2,0-2,0 СТ.20 №514; СО2 №4598; \nСО3 №4640","Зарубка 2x2 мм","2.0"," -"]
["273 x 15,09 + 273,1 x 15,09","ТК-АЛЬФА-УК-03","ПЭП  П121-5,0-65 №164738","НО-273/15-2,0-2,0 СТ.20 №3435; СО2 №4598; \nСО3 №4640","Зарубка 2x2 мм","2.0"," -"]
["273 x 15,09 + 273 x 15,09","ТК-АЛЬФА-УК-03","ПЭП  П121-5,0-65 №164738","НО-273/15-2,0-2,0 СТ.20 №3435; СО2 №4598; \nСО3 №4640","Зарубка 2x2 мм","2.0"," -"]
["273,1 x 15,09 + 273,1 x 15,09","ТК-АЛЬФА-УК-03","ПЭП  П121-5,0-65 №164738","НО-273/15-2,0-2,0 СТ.20 №3435; СО2 №4598; \nСО3 №4640","Зарубка 2x2 мм","2.0"," -"]
["323,8 x 9,53 + 323,8 x 9,53","ТК-АЛЬФА-УК-01"," ПЭП П121-5,0-70СТ81 №160167","НО-324/9,5-65°-2,0х1,3  ст.20  №3436; СО2 №4598; \nСО3 №4640 ","Зарубка 2x1,3 мм",1.6,1.8]
["323,9 x 9,53 + 323,9 x 9,53","ТК-АЛЬФА-УК-01"," ПЭП П121-5,0-70СТ81 №160167","НО-324/9,5-65°-2,0х1,3  ст.20  №3436; СО2 №4598; \nСО3 №4640 ","Зарубка 2x1,3 мм",1.6,1.8]
["323,8 x 12,7 + 323,8 x 12,7","ТК-АЛЬФА-УК-03","ПЭП  П121-5,0-65  №119916","НО-324/13-2,0-2,0 СТ.20 №3438 ; СО2 №4598; \nСО3 №4640 ","Зарубка 2x2 мм","2.0"," -"]
["323,9 x 12,7 + 323,9 x 12,7","ТК-АЛЬФА-УК-03","ПЭП  П121-5,0-65  №119916","НО-324/13-2,0-2,0 СТ.20 №3438 ; СО2 №4598; \nСО3 №4640 ","Зарубка 2x2 мм","2.0"," -"]
["323,8 x 14,27 + 323,8 x 14,27","ТК-АЛЬФА-УК-03","ПЭП  П121-5,0-65  №119916","НО-324/-14-2,0-2,0 СТ.20 №3437 ; СО2 №4598; \nСО3 №4640 ","Зарубка 2x2 мм","2.0"," -"]
["323,9 x 14,27 + 323,9 x 14,27","ТК-АЛЬФА-УК-03","ПЭП  П121-5,0-65  №119916","НО-324/-14-2,0-2,0 СТ.20 №3437 ; СО2 №4598; \nСО3 №4640 ","Зарубка 2x2 мм","2.0"," -"]
["323,8 x 17,48 + 323,8 x 17,48","ТК-АЛЬФА-УК-03","ПЭП  П121-5,0-65  №119916","НО-324/17,5-2,0х2,0 ст.20 № 3439; СО2 №4598; \nСО3 №4640 ","Зарубка 2x2 мм","2.0"," -"]
["323,9 x 17,48 + 323,9 x 17,48","ТК-АЛЬФА-УК-03","ПЭП  П121-5,0-65  №119916","НО-324/17,5-2,0х2,0 ст.20 № 3439; СО2 №4598; \nСО3 №4640 ","Зарубка 2x2 мм","2.0"," -"]
["355,6 x 9,53 + 355,6 x 9,53","ТК-АЛЬФА-УК-02"," ПЭП П121-5,0-70 №160169","НО-355/9,5-65-2,0х1,3 ст.20 №3442; СО2 №4598; \nСО3 №4640","Зарубка 2,0х1,3 мм",1.6," -"]
["355,6 x 19,05 + 355,6 x 19,05","ТК-АЛЬФА-УК-05","ПЭП П121-2,5-65 №164749","НО 355/19,06-2,0х2,0 ст.20 №0845-20; СО2 №4598; \nСО3 №4640","Зарубка 2x2 мм","2.0"," -"]
["406,4 x 9,53 + 406,4 x 9,53","ТК-АЛЬФА-УК-02","ПЭП П121-5,0-70 №160170","НО 406/9,5-2,0х1,0 ст.20 №502; СО2 №4598; \nСО3 №4640 ","Зарубка 2x1 мм",1.6," -"]
["457 x 12,7 + 457 x 12,7","ТК-АЛЬФА-УК-04","ПЭП П121-5,0-65 №164745","НО-457/12-2,0х2,0 ст.20 №511; СО2 №4598; \nСО3 №4640 ","Зарубка 2x2 мм","2.0"," -"]
["457,1 x 12,7 + 457,1 x 12,7","ТК-АЛЬФА-УК-04","ПЭП П121-5,0-65 №164745","НО-457/12-2,0х2,0 ст.20 №511; СО2 №4598; \nСО3 №4640 ","Зарубка 2x2 мм","2.0"," -"]
["457 x 23,88 + 457 x 23,88","ТК-АЛЬФА-УК-05","ПЭП П121-2,5-65 №119968","НО-457/23,58-3,0х2,0 ст.20 №0847-20; СО2 №4598; \nСО3 №4640","Зарубка 3x2 мм","3,0"," -"]
["508 x 9,53 + 508 x 9,53","ТК-АЛЬФА-УК-02"," ПЭП AN5070J508 №164614","НО 508/9,5-2,0х1,0 ст.20 №503; СО2 №4598; \nСО3 №4640 ","Зарубка 2x1 мм",1.6," -"]
["508,1 x 9,53 + 508,1 x 9,53","ТК-АЛЬФА-УК-02"," ПЭП AN5070J508 №164614","НО 508/9,5-2,0х1,0 ст.20 №503; СО2 №4598; \nСО3 №4640 ","Зарубка 2x1 мм",1.6," -"]
["508 x 26,19 + 508 x 26,19","ТК-АЛЬФА-УК-06","ПЭП П121-2,5-65 №164750","НО 508/26-3,0х2,0 ст.20 №504; СО2 №4598; \nСО3 №4640 ","Зарубка 3x2 мм","3,0"," -"]
["508,1 x 26,19 + 508,1 x 26,19","ТК-АЛЬФА-УК-06","ПЭП П121-2,5-65 №164750","НО 508/26-3,0х2,0 ст.20 №504; СО2 №4598; \nСО3 №4640 ","Зарубка 3x2 мм","3,0"," -"]
["610 x 30,96 + 610 x 30,96","ТК-АЛЬФА-УК-06","ПЭП П121-2,5-65 №68201","НО-610/30-3,0х2,0 ст.20 №505; СО2 №4598; \nСО3 №4640 ","Зарубка 3x2 мм","3,0"," -"]
["609,6 x 30,96 + 609,6 x 30,96","ТК-АЛЬФА-УК-06","ПЭП П121-2,5-65 №68201","НО-610/30-3,0х2,0 ст.20 №505; СО2 №4598; \nСО3 №4640 ","Зарубка 3x2 мм","3,0"," -"]
["609,6 x 40 + 609,6 x 40","ТК-АЛЬФА-УК-06","ПЭП П121-2,5-50 №164754","НО-610/40-3,0х2,0 ст.20 №518; СО2 №4598; \nСО3 №4640 ","Зарубка 3x2 мм","3,0"," -"]
["711 x 19,05 + 711 x 19,05","ТК-АЛЬФА-УК-06","ПЭП П121-2,5-65СТ81 №049","НО-711/19-3,0х2,0 ст.20 №507; СО2 №4598; \nСО3 №4640","Зарубка 3x2 мм","3,0"," -"]
["711,1 x 19,05 + 711,1 x 19,05","ТК-АЛЬФА-УК-06","ПЭП П121-2,5-65СТ81 №049","НО-711/19-3,0х2,0 ст.20 №507; СО2 №4598; \nСО3 №4640","Зарубка 3x2 мм","3,0"," -"]
["711,2 x 19,05 + 711,2 x 19,05","ТК-АЛЬФА-УК-06","ПЭП П121-2,5-65СТ81 №049","НО-711/19-3,0х2,0 ст.20 №507; СО2 №4598; \nСО3 №4640","Зарубка 3x2 мм","3,0"," -"]
["711 x 33 + 711 x 33","ТК-АЛЬФА-УК-06","ПЭП П121-2,5-50 №164756","НО-711/33-3,0х2,0 ст.20 №508; СО2 №4598; \nСО3 №4640","Зарубка 3x2 мм","3,0"," -"]
["711,1 x 33 + 711,1 x 33","ТК-АЛЬФА-УК-06","ПЭП П121-2,5-50 №164756","НО-711/33-3,0х2,0 ст.20 №508; СО2 №4598; \nСО3 №4640","Зарубка 3x2 мм","3,0"," -"]
["711,2 x 33 + 711,2 x 33","ТК-АЛЬФА-УК-06","ПЭП П121-2,5-50 №164756","НО-711/33-3,0х2,0 ст.20 №508; СО2 №4598; \nСО3 №4640","Зарубка 3x2 мм","3,0"," -"]
["711 x 35 + 711 x 35","ТК-АЛЬФА-УК-06","ПЭП П121-2,5-50 №164756","НО-711/35-3,0х2,0 ст.20 №506; СО2 №4598; \nСО3 №4640","Зарубка 3x2 мм","3,0"," -"]
["711,2 x 35 + 711,2 x 35","ТК-АЛЬФА-УК-06","ПЭП П121-2,5-50 №164756","НО-711/35-3,0х2,0 ст.20 №506; СО2 №4598; \nСО3 №4640","Зарубка 3x2 мм","3,0"," -"]
["762 x 19,05 + 762 x 19,05","ТК-АЛЬФА-УК-05","ПЭП П121-2,5-65СТ81 №051","НО-762/19-3,0х2,0 ст.20 №510; СО2 №4598; \nСО3 №4640","Зарубка 3x2 мм","3,0"," -"]
["762 x 33 + 762 x 33","ТК-АЛЬФА-УК-06","ПЭП П121-2,5-50 №164757","НО-762/33-3,0х2,0 ст.20 №509; СО2 №4598; \nСО3 №4640","Зарубка 3x2 мм","3,0"," -"]
["762 x 40 + 762 x 40","ТК-АЛЬФА-УК-06","ПЭП П121-2,5-50 №164757","НО-762/40-3,0х2,0 ст.20 №515; СО2 №4598; \nСО3 №4640","Зарубка 3x2 мм","3,0"," -"]
["812,6 x 40 + 812,6 x 40","ТК-АЛЬФА-УК-06"," ПЭП П121-2,5-50 №135821","НО-813/40-3,0х2,0 ст.20 №516; СО2 №4598; \nСО3 №4640","Зарубка 3x2 мм","3,0"," -"]
["812,8 x 40 + 812,8 x 40","ТК-АЛЬФА-УК-06"," ПЭП П121-2,5-50 №135821","НО-813/40-3,0х2,0 ст.20 №516; СО2 №4598; \nСО3 №4640","Зарубка 3x2 мм","3,0"," -"]
["813 x 40 + 813 x 40","ТК-АЛЬФА-УК-06"," ПЭП П121-2,5-50 №135821","НО-813/40-3,0х2,0 ст.20 №516; СО2 №4598; \nСО3 №4640","Зарубка 3x2 мм","3,0"," -"]
["1016 x 50 + 1016 x 50","ТК-АЛЬФА-УК-06"," ПЭП П121-2,5-50 №135821","НО-1016/50-50˚-2,0х1,3 ст.20 №517; СО2 №4598; \nСО3 №4640","Зарубка 2х1,3 мм","3,0"," -"]
["60,3 x 5,54 + 60,3 x 5,54","ТК-АЛЬФА-УК-07","ПЭП П121-5,0-70 №124534","НО-ТТР 60,3/5,54-1,2х1,0 ст.20; №1563-20; СО2 №4598; \nСО3 №4640","Зарубка 1,2x1 мм",1.2," -"]
["88,9 x 5,49 + 88,9 x 5,49","ТК-АЛЬФА-УК-07","ПЭП П121-5,0-70 №154062","НО-ТТР 89/5,49-1,2х1,0 ст.20; №1569-20; СО2 №4598; \nСО3 №4640","Зарубка 1,2x1 мм",1.2,"-"]
["114,3 x 11,13 + 114,3 x 11,13","ТК-АЛЬФА-УК-03","ПЭП П121-5,0-70 №124953","НО-114/11-2,0х1,6 ст.20 №3427; СО2 №4598; \nСО3 №4640 ","Зарубка 2x1,6 мм",1.6," -"]
["60,3 x 8,74 + 60,3 x 8,74","ТК-АЛЬФА-УК-01","ПЭП П121-5,0-70 №1245344","НО-ТТР 60,3/8,74-2,0х1,0 ст.20; №1564-20; СО2 №4598; \nСО3 №4640","Зарубка 2,0x1 мм","-"," -"]
["60,3 x 11,07 + 60,3 x 11,07","ТК-АЛЬФА-УК-03","ПЭП П121-5,0-65 №123351","НО-ТТР 60,3/11,07-2,0х2,0 ст.20; №1566-20; СО2 №4598; \nСО3 №4640","Зарубка 2,0x2 мм","-","-"]
["88,9 x 11,13 + 88,9 x 11,13","ТК-АЛЬФА-УК-03","ПЭП П121-5,0-70 №99744","НО-ТТР 89/11,13-2,0х2,0 ст.20; №1571-20; СО2 №4598; \nСО3 №4640","Зарубка 2x2 мм",1.6," -"]

{"sheet":"Шапка","index":11,"n_rows":9,"n_cols":8,"rows_kept":9,"cut":false,"hidden":false,"merged":[[8,1,8,5],[6,1,6,5],[1,1,1,5],[2,1,2,5],[3,1,3,5],[4,1,4,5],[5,1,5,5],[7,1,7,5]]}
[]
["YMT","Наименование подрядной организации /Name of the construction contractor: Филиал Акционерной Компании \"Ямата Ятырым Иншаат Туризм ве Тиджарет Аноним Ширкети\" Yamata Yatirim Insaat Turizm ve Ticaret A.S.",null,null,null,null,"Наименование технологического узла/ Name of the process unit:"]
["CPECC (YМТ)","Наименование подрядной организации /Name of the construction contractor: Амурский филиал Чайна Петролеум Инжиниринг энд Констракшн Корпорейшн / Amursky Branch of China Petroleum Engineering & Construction Corporation Наименование субподрядной организации / Name of the construction subcontractor: Филиал Акционерной Компании \"Ямата Ятырым Иншаат Туризм ве Тиджарет Аноним Ширкети\" Yamata Yatirim Insaat Turizm ve Ticaret A.S. ",null,null,null,null,"Наименование технологического узла/ Name of the process unit:","МТ-русские буквы!!! (для формулы поиска!)"]
["CPECC (CPC)","Наименование подрядной организации /Name of the construction contractor: Амурский филиал Чайна Петролеум Инжиниринг энд Констракшн Корпорейшн / Amursky Branch of China Petroleum Engineering & Construction Corporation Наименование субподрядной организации / Name of the construction subcontractor: Филиал Акционерной Компании \"Ямата Ятырым Иншаат Туризм ве Тиджарет Аноним Ширкети\" Yamata Yatirim Insaat Turizm ve Ticaret A.S. ",null,null,null,null,"Наименование технологического узла/ Name of the process unit:"]
["CPECC (AFB)","Наименование подрядной организации /Name of the construction contractor: Амурский филиал Чайна Петролеум Инжиниринг энд Констракшн Корпорейшн / Amursky Branch of China Petroleum Engineering & Construction Corporation ",null,null,null,null,"Наименование технологического узла/ Name of the process unit:"]
["CPECC (TTVR)","Наименование подрядной организации /Name of the construction contractor: Амурский филиал Чайна Петролеум Инжиниринг энд Констракшн Корпорейшн / Amursky Branch of China Petroleum Engineering & Construction Corporation ",null,null,null,null,"Номер оборудования/ Equipment number: "]
["YMT (эксперимент)","Наименование подрядной организации /Name of the construction contractor: Филиал Акционерной Компании \"Ямата Ятырым Иншаат Туризм ве Тиджарет Аноним Ширкети\" Yamata Yatirim Insaat Turizm ve Ticaret A.S.",null,null,null,null,"Наименование технологического узла/ Name of the process unit:"]
["CPECC (GNZ)","Наименование подрядной организации /Name of the construction contractor: Амурский филиал Чайна Петролеум Инжиниринг энд Констракшн Корпорейшн / Amursky Branch of China Petroleum Engineering & Construction Corporation ",null,null,null,null,"Наименование технологического узла/ Name of the process unit:"]
["CPECC (CPC-ABC)","Наименование подрядной организации /Name of the construction contractor: Амурский филиал Чайна Петролеум Инжиниринг энд Констракшн Корпорейшн / Amursky Branch of China Petroleum Engineering & Construction Corporation Наименование субподрядной организации / Name of the construction subcontractor: Филиал Акционерной Компании \"Ямата Ятырым Иншаат Туризм ве Тиджарет Аноним Ширкети\" Yamata Yatirim Insaat Turizm ve Ticaret A.S. ",null,null,null,null,"Наименование технологического узла/ Name of the process unit:"]

{"sheet":"Лист1","index":12,"n_rows":18,"n_cols":41,"rows_kept":18,"cut":false,"hidden":true,"merged":[]}
[" Наименование ЛНК","№ заявки для ЛНК","Дата заявки ЛНК","Титул","Линия","Чертеж","ISO ","Spool","Номер стыка","Категория","% контроля","Материал свариваемых элементов","Вид сварного соединения  "," Диаметр 1","Толщина 1","Диаметр 2","Толщина 2","Дюйм-диаметр","Клейма сварщиков","Клеймо дефектоскописта","№ заключения ВИК VT ","Статус ВИК (заявлен, Годен, Ремонт, вырез, пересвет, предмет в трубе)","Дата ВИК","№ заключения  РК RT","Статус РК (заявлен, Годен, Ремонт, вырез, пересвет, предмет в трубе)","Дата РК","№ заключения  УЗК UT ","Статус УЗК (заявлен, Годен, Ремонт, вырез, пересвет, предмет в трубе)","Дата УЗК","№ заключения ПВК PT","Статус ПВК (заявлен, Годен, Ремонт, вырез, пересвет, предмет в трубе)","Дата ПВК","Заявленны виды контроля","Недопустимый дефект, координата дефекта","Комментарии ВИК","Комментарии ПВК","Комментарии РК","Отметка о приемке заключений РК представителями СГ","Комментарии","№ Реестра","Примечания заключений (комментарии)"]
["ООО \"Альфа\"","YMT-A-SUP-0026","2020-05-07","﻿4.1.3.11.119","1-11-841008","0055-4.1.3.11.119-TM.IS-0582","4-1-3-11-119-UHGAL-84-1008-006","N/A","T51","Б(а)-I / B(a)-I","100%","304SS / НС304","FW",60.3,3.91,60.3,3.91,2,"28LB",null,"YMT-A-SUP-0026 VT 18387","Годен","2020-05-25","RT",null,null," UT ",null,null,"YMT-A-SUP-0026 PT 18387","Годен","2020-05-25","ВИК,ПВК",null,"/ 300 x 6",null,null,null,"∑Lшва=600 mm"]
[]
[]
[]
[null,null,null,null,null,null,null,null,null,null,null,null,null,null,null,null,{"$f":"IF(NOT($U$2=\"VT\"),\"Закл.№\"&RIGHT($U$2,5),IF(NOT($X$2=\"RT\"),\"Закл.№\"&RIGHT($X$2,5),IF(NOT($AA$2=\"UT\"),\"Закл.№\"&RIGHT($AA$2,5),IF(NOT($AD$2=\"PT\"),\"Закл.№\"&RIGHT($AD$2,5)))))&\"-\"&RIGHT($B$2,4)&\"   \"&IF($H$2=\"N/A\",RIGHT($E$2,4),IF($H$2=\"-\",RIGHT($E$2,4),$H$2))&\"   \"&$I$2&\"   от \"&IF(NOT(ISBLANK($W$2)),TEXT($W$2,\"дд.ММ.гггг\"),IF(NOT(ISBLANK($Z$2)),TEXT($Z$2,\"дд.ММ.гггг\"),IF(NOT(ISBLANK($AC$2)),TEXT($AC$2,\"дд.ММ.гггг\"),IF(NOT(ISBLANK($AF$2)),TEXT($AF$2,\"дд.ММ.гггг\")))))&\"   \"&$N$2&\"x\"&$O$2&\"   \"&$AG$2","v":"Закл.№18387-0026   1008   T51   от 25.05.2020   60,3x3,91   ВИК,ПВК"}]
[]
[]
[null,null,null,null,null,null,null,null,null,null,null,null,null,null,null,null,"Закл.№18387-0026   1008   T51   от 25.05.2020   60,3x3,91   ВИК,ПВК"]
[]
[null,null,null,null,null,null,null,null,null,null,null,null,null,null,null,null,null,null,null,null,null,null,null,null,null,null,null,null,null,null,{"$f":"IF(NOT($U$2=\"VT\"),\"Закл.№\"&RIGHT($U$2,5),IF(NOT($X$2=\"RT\"),\"Закл.№\"&RIGHT($X$2,5),IF(NOT($AA$2=\"UT\"),\"Закл.№\"&RIGHT($AA$2,5),IF(NOT($AD$2=\"PT\"),\"Закл.№\"&RIGHT($AD$2,5)))))&\"-\"&RIGHT($B$2,4)&\"   \"&IF($H$2=\"N/A\",RIGHT($E$2,4),IF($H$2=\"-\",RIGHT($E$2,4),$H$2))&\"   \"&$I$2&\"   от \"&IF(NOT(ISBLANK($W$2)),TEXT($W$2,\"дд.ММ.гггг\"),IF(NOT(ISBLANK($Z$2)),TEXT($Z$2,\"дд.ММ.гггг\"),IF(NOT(ISBLANK($AC$2)),TEXT($AC$2,\"дд.ММ.гггг\"),IF(NOT(ISBLANK($AF$2)),TEXT($AF$2,\"дд.ММ.гггг\")))))&\"   \"&$N$2&\"x\"&$O$2&\"   \"&$AG$2","v":"Закл.№18387-0026   1008   T51   от 25.05.2020   60,3x3,91   ВИК,ПВК"}]
[]
[]
[]
[]
[]
[]
[null,null,null,null,null,null,null,null,null,null,null,null,null,null,null,null,"Закл.№18387-0026   1008   T51   от 25.05.2020   60,3x3,91   ВИК,ПВК"]